{"text_format":"1","workbook":"xlsx","n_sheets":3,"sheets":["Cerere de Finantare","A8-Detalii privind terenul ","Asociati"],"not_rendered":{"charts":0,"images":1,"macros":1,"external_links":0,"defined_names":0,"comments":0,"pivot_tables":0},"unopened":[],"bounds":{"document_bytes":16777216,"sheet_cells":100000,"rows_first":2000,"rows_last":500,"rows_between":2000,"halvings":0,"cell_chars":16384,"cell_head_chars":4096},"cells_cut":0,"cells_raw":0,"read":"whole","date_system":"1900"}

{"sheet":"Cerere de Finantare","index":0,"n_rows":573,"n_cols":61,"rows_kept":573,"cut":false,"hidden":false,"merged":[[188,0,189,4],[188,5,188,62],[182,0,183,4],[182,5,182,62],[183,5,183,51],[183,52,183,62],[184,0,185,4],[184,5,184,62],[185,5,185,51],[185,52,185,62],[186,0,187,4],[186,5,186,62],[187,5,187,51],[187,52,187,62],[198,0,198,51],[198,52,198,62],[189,5,189,51],[189,52,189,62],[190,0,191,4],[190,5,190,62],[191,5,191,51],[191,52,191,62],[192,0,193,4],[192,5,192,62],[193,5,193,51],[193,52,193,62],[194,0,195,4],[194,5,194,62],[195,5,195,51],[195,52,195,62],[196,0,197,4],[196,5,196,62],[197,5,197,51],[197,52,197,62],[485,0,485,8],[485,10,485,24],[487,52,487,60],[487,25,487,33],[489,0,497,63],[127,5,127,44],[480,0,480,8],[480,9,480,30],[480,31,480,40],[480,41,480,50],[480,51,480,63],[481,0,481,8],[481,9,481,30],[481,31,481,40],[481,41,481,50],[481,51,481,63],[482,0,482,8],[482,9,482,30],[482,31,482,40],[482,41,482,50],[482,51,482,63],[483,0,483,8],[483,9,483,30],[483,31,483,40],[483,41,483,50],[483,51,483,63],[369,0,369,30],[369,31,369,35],[369,38,369,44],[369,45,369,52],[369,53,369,57],[369,58,369,63],[476,0,476,8],[476,9,476,30],[476,31,476,40],[476,41,476,50],[476,51,476,63],[477,0,477,8],[470,0,470,8],[469,0,469,8],[468,0,468,8],[477,41,477,50],[477,51,477,63],[478,9,478,30],[478,31,478,40],[478,41,478,50],[478,51,478,63],[466,0,466,8],[466,9,466,30],[466,31,466,40],[466,41,466,50],[466,51,466,63],[467,0,467,8],[467,9,467,30],[467,31,467,40],[467,41,467,50],[467,51,467,63],[468,9,468,30],[468,31,468,40],[468,41,468,50],[468,51,468,63],[469,9,469,30],[479,9,479,30],[479,31,479,40],[479,41,479,50],[479,51,479,63],[472,9,472,30],[472,31,472,40],[472,41,472,50],[472,51,472,63],[473,9,473,30],[473,31,473,40],[473,41,473,50],[473,51,473,63],[474,9,474,30],[474,31,474,40],[474,41,474,50],[474,51,474,63],[475,9,475,30],[475,31,475,40],[475,41,475,50],[475,51,475,63],[469,31,469,40],[469,41,469,50],[469,51,469,63],[470,9,470,30],[470,31,470,40],[470,41,470,50],[470,51,470,63],[471,9,471,30],[471,31,471,40],[471,41,471,50],[471,51,471,63],[474,0,474,8],[473,0,473,8],[472,0,472,8],[471,0,471,8],[462,0,462,8],[462,9,462,30],[462,31,462,40],[462,41,462,50],[462,51,462,63],[463,0,463,8],[463,9,463,30],[463,31,463,40],[463,41,463,50],[463,51,463,63],[464,0,464,8],[464,9,464,30],[464,31,464,40],[464,41,464,50],[464,51,464,63],[465,0,465,8],[465,9,465,30],[465,31,465,40],[465,41,465,50],[465,51,465,63],[461,0,461,8],[461,9,461,30],[461,31,461,40],[461,41,461,50],[461,51,461,63],[456,0,456,8],[456,9,456,30],[456,31,456,40],[456,41,456,50],[456,51,456,63],[457,0,457,8],[457,9,457,30],[457,31,457,40],[457,41,457,50],[457,51,457,63],[458,0,458,8],[458,9,458,30],[458,31,458,40],[429,51,429,63],[421,9,421,30],[422,9,422,30],[424,0,424,8],[424,9,424,30],[430,31,430,40],[423,9,423,30],[459,0,459,8],[459,9,459,30],[459,31,459,40],[459,41,459,50],[459,51,459,63],[460,0,460,8],[460,9,460,30],[460,31,460,40],[460,41,460,50],[460,51,460,63],[426,51,426,63],[427,0,427,8],[427,9,427,30],[427,31,427,40],[427,41,427,50],[427,51,427,63],[436,9,436,30],[436,31,436,40],[436,41,436,50],[436,51,436,63],[437,9,437,30],[437,31,437,40],[437,41,437,50],[437,51,437,63],[430,41,430,50],[410,41,410,50],[410,51,410,63],[411,31,411,40],[411,41,411,50],[411,51,411,63],[415,31,415,40],[415,41,415,50],[415,51,415,63],[416,31,416,40],[416,41,416,50],[416,51,416,63],[417,31,417,40],[417,41,417,50],[417,51,417,63],[418,31,418,40],[418,41,418,50],[418,51,418,63],[413,31,413,40],[413,41,413,50],[383,31,383,35],[383,38,383,44],[383,45,383,52],[383,53,383,57],[383,58,383,63],[383,0,383,30],[386,0,386,30],[386,31,386,35],[386,38,386,44],[386,45,386,52],[386,53,386,57],[386,58,386,63],[387,0,387,30],[387,31,387,35],[387,38,387,44],[387,45,387,52],[387,53,387,57],[387,58,387,63],[385,31,385,35],[385,38,385,44],[385,45,385,52],[385,53,385,57],[385,58,385,63],[380,0,380,30],[380,31,380,35],[380,38,380,44],[380,45,380,52],[380,53,380,57],[380,58,380,63],[329,41,329,46],[329,47,329,55],[329,56,329,59],[329,60,329,62],[330,19,330,40],[330,41,330,46],[330,47,330,55],[330,56,330,59],[330,60,330,62],[331,19,331,40],[331,41,331,46],[331,47,331,55],[331,56,331,59],[331,60,331,62],[332,19,332,40],[332,41,332,46],[332,47,332,55],[332,56,332,59],[378,58,378,63],[379,31,379,35],[379,38,379,44],[379,45,379,52],[379,53,379,57],[379,58,379,63],[374,31,374,35],[374,38,374,44],[253,4,253,15],[253,18,253,20],[253,22,253,27],[253,29,253,38],[253,40,253,51],[253,54,253,61],[222,1,222,13],[223,1,223,13],[222,20,222,33],[223,20,223,33],[222,39,222,61],[223,39,223,61],[244,40,244,51],[245,40,246,51],[244,54,244,61],[245,54,246,61],[240,3,240,10],[241,3,241,16],[240,25,240,52],[244,4,244,15],[245,4,245,6],[245,7,245,9],[245,10,245,15],[246,4,246,6],[241,25,241,52],[244,29,244,38],[245,29,246,38],[248,1,248,33],[244,18,244,20],[244,22,244,27],[245,22,246,27],[245,18,246,20],[177,20,177,31],[219,11,219,33],[218,11,218,33],[217,23,217,43],[219,35,219,40],[218,35,218,40],[219,42,219,45],[218,42,218,45],[218,47,218,50],[219,47,219,50],[218,52,218,54],[219,52,219,54],[218,56,218,59],[219,56,219,59],[216,1,216,19],[216,23,216,42],[216,45,216,61],[217,1,217,19],[217,45,217,61],[218,1,218,9],[219,1,219,9],[213,25,213,40],[213,54,213,61],[215,1,215,44],[178,0,178,62],[179,0,179,4],[179,5,179,51],[179,52,179,62],[180,0,181,4],[180,5,180,62],[181,5,181,51],[181,52,181,62],[167,3,167,14],[168,3,168,52],[166,16,166,22],[167,16,167,22],[166,24,166,30],[167,24,167,30],[166,33,166,43],[167,33,167,43],[166,46,166,53],[167,46,167,53],[169,1,169,61],[170,1,170,25],[171,1,171,25],[170,27,170,44],[171,27,171,44],[170,46,170,61],[171,46,171,61],[109,5,109,16],[111,5,111,16],[112,5,112,8],[112,9,112,56],[114,5,114,16],[103,7,103,23],[105,7,105,24],[106,7,106,24],[107,7,107,24],[108,5,108,16],[122,7,122,24],[150,0,150,8],[149,9,149,61],[150,9,150,61],[151,0,151,8],[151,9,151,61],[146,5,146,60],[147,5,147,60],[148,5,148,60],[149,0,149,8],[129,5,129,8],[129,9,129,56],[143,6,143,39],[144,6,144,39],[123,7,123,24],[124,7,124,24],[125,5,125,16],[126,5,126,16],[117,7,117,24],[128,5,128,16],[115,7,115,24],[118,7,118,28],[154,0,154,8],[152,9,152,61],[153,9,153,61],[154,9,154,61],[401,31,401,35],[401,38,401,44],[401,45,401,52],[401,53,401,57],[393,45,393,52],[393,53,393,57],[376,31,376,35],[376,38,376,44],[377,0,377,30],[377,31,377,35],[377,38,377,44],[377,45,377,52],[377,53,377,57],[377,58,377,63],[381,0,381,30],[173,1,173,41],[176,2,176,61],[155,5,155,60],[156,2,160,61],[162,2,162,61],[163,1,163,14],[164,1,164,14],[163,16,163,35],[164,16,164,35],[163,39,163,61],[164,39,164,61],[165,1,165,14],[166,3,166,14],[381,31,381,35],[381,38,381,44],[381,45,381,52],[381,53,381,57],[381,58,381,63],[508,3,508,63],[509,3,509,63],[507,3,507,63],[506,0,506,63],[501,1,501,35],[503,1,505,62],[384,31,384,35],[384,38,384,44],[384,45,384,52],[384,53,384,57],[384,58,384,63],[424,31,424,40],[424,41,424,50],[424,51,424,63],[425,0,425,8],[425,9,425,30],[425,31,425,40],[425,41,425,50],[425,51,425,63],[382,0,382,30],[382,31,382,35],[401,58,401,63],[398,31,398,35],[382,38,382,44],[382,45,382,52],[382,53,382,57],[382,58,382,63],[393,38,393,44],[518,0,518,2],[519,0,519,2],[400,31,400,35],[400,38,400,44],[400,45,400,52],[400,53,400,57],[400,58,400,63],[397,38,397,44],[397,45,397,52],[397,53,397,57],[397,58,397,63],[407,41,407,50],[407,51,407,63],[421,31,421,40],[421,41,421,50],[421,51,421,63],[408,31,408,40],[408,41,408,50],[408,51,408,63],[405,31,405,40],[423,0,423,8],[409,31,409,40],[409,41,409,50],[409,51,409,63],[410,31,410,40],[458,41,458,50],[458,51,458,63],[426,0,426,8],[426,9,426,30],[426,31,426,40],[426,41,426,50],[375,45,375,52],[375,53,375,57],[375,58,375,63],[376,45,376,52],[376,53,376,57],[376,58,376,63],[378,31,378,35],[378,38,378,44],[378,45,378,52],[378,53,378,57],[372,31,372,35],[372,38,372,44],[372,45,372,52],[372,53,372,57],[372,58,372,63],[373,31,373,35],[373,38,373,44],[373,45,373,52],[373,53,373,57],[373,58,373,63],[364,58,364,63],[363,31,363,35],[357,31,357,35],[357,38,357,44],[357,45,357,52],[357,53,357,57],[357,58,357,63],[359,31,359,35],[359,38,359,44],[359,45,359,52],[359,53,359,57],[361,31,361,35],[361,38,361,44],[361,45,361,52],[361,53,361,57],[361,58,361,63],[356,31,356,35],[356,38,356,44],[360,58,360,63],[365,53,365,57],[365,58,365,63],[346,31,346,52],[346,53,346,63],[354,31,354,35],[354,38,354,44],[354,45,354,52],[354,53,354,57],[354,58,354,63],[355,31,355,35],[355,38,355,44],[355,45,355,52],[355,53,355,57],[355,58,355,63],[352,31,352,35],[352,38,352,44],[352,45,352,52],[352,53,352,57],[352,58,352,63],[353,31,353,35],[353,38,353,44],[350,31,350,35],[353,45,353,52],[353,53,353,57],[363,38,363,44],[363,45,363,52],[363,53,363,57],[363,58,363,63],[364,31,364,35],[364,38,364,44],[364,45,364,52],[364,53,364,57],[12,26,13,26],[12,28,13,28],[12,29,13,29],[35,1,35,23],[28,1,28,15],[22,0,22,16],[23,0,23,63],[19,0,19,22],[20,0,20,7],[21,0,21,22],[30,1,30,16],[55,53,55,61],[49,28,49,43],[49,44,49,62],[47,2,47,19],[48,0,48,15],[49,0,49,12],[49,13,49,26],[55,1,55,13],[55,15,55,26],[55,28,55,40],[55,42,55,51],[29,1,29,62],[31,1,34,62],[36,1,45,62],[28,51,28,62],[26,10,26,43],[51,52,51,62],[0,6,0,63],[1,6,1,63],[7,0,7,35],[8,0,8,35],[10,7,10,35],[10,0,10,5],[6,39,6,63],[3,45,3,63],[12,0,12,5],[12,7,13,7],[12,9,13,9],[12,10,13,10],[12,12,13,12],[5,0,6,35],[5,39,5,63],[13,0,13,5],[12,22,13,22],[10,39,10,63],[11,39,12,63],[12,13,13,13],[12,15,13,15],[12,16,13,16],[12,17,13,17],[12,18,13,18],[12,20,13,20],[12,31,13,31],[12,32,13,32],[12,33,13,33],[12,34,13,34],[12,35,13,35],[12,23,13,23],[12,24,13,24],[100,7,100,24],[18,0,18,7],[15,31,15,35],[16,31,16,35],[17,31,17,35],[14,6,14,8],[15,6,15,8],[16,6,16,8],[14,9,14,11],[14,12,14,14],[15,12,15,14],[14,28,14,29],[15,28,15,29],[14,25,14,27],[15,25,15,27],[16,12,16,14],[15,9,15,11],[18,9,18,20],[15,20,15,24],[16,20,16,24],[17,20,17,24],[14,15,14,18],[15,15,15,18],[14,31,14,35],[14,20,14,24],[99,34,99,46],[51,6,51,22],[51,27,51,44],[53,6,53,26],[53,31,53,34],[99,7,99,24],[121,7,121,24],[152,0,152,8],[153,0,153,8],[83,53,83,61],[95,1,95,23],[91,28,91,40],[91,42,91,51],[91,53,91,61],[91,15,91,26],[98,29,98,31],[73,1,77,13],[67,42,67,51],[59,15,59,26],[59,28,59,40],[59,42,59,51],[59,53,59,61],[75,15,75,26],[75,28,75,40],[75,42,75,51],[75,53,75,61],[67,53,67,61],[65,1,69,13],[57,1,61,13],[67,15,67,26],[67,28,67,40],[83,15,83,26],[83,28,83,40],[83,42,83,51],[97,5,97,16],[98,34,98,46],[98,7,98,24],[101,7,101,28],[221,24,221,38],[221,40,221,62],[220,40,220,62],[104,7,104,24],[102,5,102,16],[205,2,205,14],[205,19,205,42],[205,46,205,61],[207,43,207,61],[204,46,204,61],[211,17,211,31],[203,1,204,15],[203,19,203,42],[204,19,204,42],[203,46,203,61],[209,1,209,30],[209,33,209,34],[209,35,209,38],[209,39,209,40],[209,41,209,42],[209,44,209,45],[209,46,209,47],[209,48,209,49],[209,50,209,51],[209,53,209,54],[209,55,209,56],[209,57,209,58],[209,59,209,60],[211,51,211,58],[116,7,116,24],[119,5,119,16],[120,7,120,23],[278,23,278,42],[278,45,278,61],[279,1,279,9],[280,12,280,28],[279,31,279,34],[279,12,279,28],[280,31,280,34],[280,39,280,48],[279,57,279,61],[279,51,279,54],[280,51,280,54],[280,57,280,61],[220,1,220,10],[221,1,221,10],[220,12,220,22],[221,12,221,22],[231,4,231,13],[231,16,231,24],[231,27,231,35],[230,50,232,60],[231,39,231,49],[237,0,237,63],[238,1,238,33],[225,1,225,61],[226,1,226,61],[228,3,229,13],[228,14,229,25],[228,26,229,38],[228,39,229,49],[228,50,228,60],[229,50,229,60],[220,24,220,38],[249,3,249,10],[249,25,249,52],[250,3,250,16],[250,25,250,52],[307,2,307,59],[309,2,309,28],[309,32,309,59],[310,2,310,28],[310,32,310,59],[284,1,284,24],[281,41,281,53],[282,41,282,53],[301,0,301,63],[303,2,303,28],[304,2,304,28],[282,1,282,13],[282,20,282,33],[258,1,258,3],[258,4,258,10],[258,12,258,14],[258,15,258,24],[258,25,258,28],[258,29,258,40],[269,22,269,27],[269,29,269,38],[280,1,280,9],[279,39,279,47],[276,1,276,40],[277,1,277,19],[277,23,277,42],[277,45,277,61],[278,1,278,19],[315,1,315,14],[315,15,315,59],[316,1,316,13],[317,1,317,13],[317,15,317,28],[317,30,317,43],[317,44,317,59],[347,45,347,52],[347,53,347,57],[347,58,347,63],[340,31,340,63],[342,0,343,57],[342,58,342,63],[343,58,343,63],[344,0,344,63],[345,31,345,35],[327,56,327,59],[345,45,345,52],[345,53,345,57],[345,58,345,63],[332,60,332,62],[333,19,333,40],[333,41,333,46],[333,47,333,55],[333,56,333,59],[325,56,325,59],[334,3,334,55],[335,3,335,55],[336,3,336,55],[328,14,328,18],[331,14,331,18],[332,14,332,18],[328,41,328,46],[328,47,328,55],[328,19,328,40],[328,56,328,59],[328,60,328,62],[329,19,329,40],[510,3,510,63],[413,51,413,63],[414,31,414,40],[414,41,414,50],[414,51,414,63],[407,0,407,8],[408,0,408,8],[407,9,407,30],[408,9,408,30],[409,0,409,8],[409,9,409,30],[410,0,410,8],[410,9,410,30],[411,0,411,8],[411,9,411,30],[331,1,331,13],[345,38,345,44],[350,38,350,44],[350,45,350,52],[348,53,348,57],[348,58,348,63],[349,31,349,35],[349,38,349,44],[349,45,349,52],[349,53,349,57],[349,58,349,63],[348,31,348,35],[348,38,348,44],[348,45,348,52],[270,4,270,6],[270,7,270,9],[270,10,270,15],[270,18,271,20],[313,0,313,63],[303,30,303,62],[304,30,304,62],[306,2,306,59],[327,60,327,62],[324,47,324,55],[324,56,324,59],[324,60,324,62],[325,47,325,55],[326,47,326,55],[326,56,326,59],[326,60,326,62],[333,14,333,18],[329,14,329,18],[338,0,338,30],[327,19,327,40],[327,41,327,46],[327,47,327,55],[339,0,339,30],[338,31,339,63],[341,0,341,30],[346,0,346,30],[347,0,347,30],[347,31,347,35],[347,38,347,44],[265,3,265,10],[265,25,265,52],[266,3,266,16],[270,22,271,27],[270,29,271,38],[270,40,271,51],[270,54,271,61],[271,4,271,6],[271,7,271,9],[271,10,271,15],[89,1,93,13],[81,1,85,13],[254,54,255,61],[255,4,255,6],[255,7,255,9],[201,0,201,63],[200,0,200,63],[235,2,235,62],[211,1,211,16],[202,1,202,18],[255,10,255,15],[246,7,246,9],[246,10,246,15],[269,40,269,51],[269,54,269,61],[254,4,254,6],[254,7,254,9],[254,10,254,15],[254,18,255,20],[254,22,255,27],[254,29,255,38],[254,40,255,51],[7,39,8,63],[13,39,21,63],[263,3,263,16],[263,17,263,52],[261,2,261,14],[266,25,266,52],[269,4,269,15],[269,18,269,20],[319,0,319,63],[281,1,281,13],[281,20,281,33],[320,2,320,63],[321,2,321,63],[324,14,324,18],[325,1,325,13],[417,9,417,30],[418,0,418,8],[418,9,418,30],[273,1,274,43],[110,5,110,42],[324,19,324,40],[325,19,325,40],[324,41,324,46],[325,41,325,46],[324,1,324,13],[326,19,326,40],[326,41,326,46],[325,14,325,18],[326,1,326,13],[326,14,326,18],[327,1,327,13],[327,14,327,18],[414,9,414,30],[419,9,419,30],[420,9,420,30],[415,9,415,30],[350,0,350,30],[405,51,405,63],[406,51,406,63],[393,58,393,63],[355,0,355,30],[354,0,354,30],[353,0,353,30],[352,0,352,30],[351,0,351,30],[388,53,388,57],[388,58,388,63],[389,0,389,30],[389,31,389,35],[389,38,389,44],[389,45,389,52],[389,53,389,57],[350,53,350,57],[350,58,350,63],[351,31,351,35],[351,38,351,44],[351,45,351,52],[351,53,351,57],[351,58,351,63],[365,31,365,35],[365,38,365,44],[365,45,365,52],[385,0,385,30],[384,0,384,30],[349,0,349,30],[348,0,348,30],[345,0,345,30],[417,0,417,8],[416,0,416,8],[415,0,415,8],[414,0,414,8],[413,0,413,8],[412,0,412,8],[370,0,370,30],[368,0,368,30],[367,0,367,30],[330,14,330,18],[328,1,328,13],[329,1,329,13],[330,1,330,13],[405,41,405,50],[406,31,406,40],[406,41,406,50],[332,1,332,13],[333,1,333,13],[397,31,397,35],[393,31,393,35],[366,0,366,30],[365,0,365,30],[364,0,364,30],[363,0,363,30],[361,0,361,30],[360,0,360,30],[359,0,359,30],[357,0,357,30],[356,0,356,30],[379,0,379,30],[378,0,378,30]],"merged_total":1438,"flags":["merged_cut"]}
[null,null,null,null,null,null,"MINISTERUL AGRICULTURII ŞI DEZVOLTĂRII RURALE"]
[null,null,null,null,null,null,"AGENŢIA PENTRU FINANŢAREA INVESTIŢIILOR RURALE"]
[null,null,null,null,null,null,null,null,null,null,null,null,null,"ASOCIATIA GRUP DE ACTIUNE LOCALA ADA KALEH"]
[null,null,null,null,null,null,null,null,null,null,null,null,null,null,null,null,null,null,null,null,null,null,null,null,null,null,null,null,null,null,null,null,null,null,null,null,null,null,null,null,null,null,null,null,null,"SECŢIUNE GENERALĂ"]
[]
["DATE DE ÎNREGISTRARE",null,null,null,null,null,null,null,null,null,null,null,null,null,null,null,null,null,null,null,null,null,null,null,null,null,null,null,null,null,null,null,null,null,null,null,null,null,null,"NUME ŞI PRENUME DIRECTOR "]
[null,null,null,null,null,null,null,null,null,null,null,null,null,null,null,null,null,null,null,null,null,null,null,null,null,null,null,null,null,null,null,null,null,null,null,null,null,null,null,"OJFIR"]
["Se completează de către Agenția pentru Finanțarea Investițiilor Rurale -Oficiul Judetean"]
["Regional- Programul FEADR 2014-2020"]
[]
["OJFIR",null,null,null,null,null,null,null,null,null,null,null,null,null,null,null,null,null,null,null,null,null,null,null,null,null,null,null,null,null,null,null,null,null,null,null,null,null,null,"Semnătura Director OJFIR"]
[null,null,null,null,null,null,null,null,null,null,null,null,null,null,null,null,null,null,null,null,null,null,null,null,null,null,null,null,null,null,null,null,null,null,null,null,null,null,null,"Ştampila OJFIR"]
["Număr "]
["înregistrare"]
[]
[]
[]
[]
["Data Înregistrării"]
["Numele şi prenumele persoanei care înregistrează"]
["Semnătura:"]
["Data primirii cererii de finanţare la contractare:"]
["Se completează de către solicitant"]
["A PREZENTARE GENERALĂ"]
[]
[null,"A1 Sub-măsura   19.2 "]
[null,null,null,null,null,null,null,null,null,null,"MASURA M1/2A “DEZVOLTARE AGRO FERME ”"]
[]
[null,"A2 Denumire solicitant:"]
[]
[null,"A3 Titlu proiect:"]
[]
[]
[]
[]
[null,"A4 Descrierea succintă a proiectului:"]
[]
[]
[]
[]
[]
[]
[]
[]
[]
[]
[]
[null,null,"A5 Amplasarea proiectului:"]
[]
["Regiunea de dezvoltare:",null,null,null,null,null,null,null,null,null,null,null,null,null,null,null,null,null,null,null,null,null,null,null,null,null,null,null,"Judeţ:"]
[]
["Localitate",null,null,null,null,null,null,null,null,null,null,null,null,null,null,null,null,null,null,null,null,null,null,null,null,"Sat",null,null,null,null,null,null,null,null,null,null,null,null,null,null,null,null,null,null,null,"Cod Postal"]
[]
[null,"Strada",null,null,null,null,null,null,null,null,null,null,null,null,null,null,null,null,null,null,null,null,null,null,null,null,null,null,null,"Nr."]
[]
[null,"Obiectivele investiţiei",null,null,null,null,null,null,null,null,null,null,null,null,null,"Judeţ",null,null,null,null,null,null,null,null,null,null,null,null,"Comună",null,null,null,null,null,null,null,null,null,null,null,null,null,"Sat",null,null,null,null,null,null,null,null,null,null,"Sat"]
[]
[]
[]
[]
[]
[]
[]
[]
[]
[]
[]
[]
[]
[]
[]
[]
[]
[]
[]
[]
[]
[]
[]
[]
[]
[]
[]
[]
[]
[]
[]
[]
[]
[]
[]
[]
[]
[]
[]
[null,"A6 Detalii proiect"]
[null,null," - Sectorul exploatatie agricole:"]
[null,null,null,null,null,"Vegetal"]
[null,null,null,null,null,null,null,"culturi de câmp"]
[null,null,null,null,null,null,null,"horticultură"]
[null,null,null,null,null,null,null,"viticultură"]
[null,null,null,null,null,null,null,"culturi permanente (altele decât viticultura)"]
[null,null,null,null,null,"Zootehnic"]
[null,null,null,null,null,null,null,"bovine pentru carne;"]
[null,null,null,null,null,null,null,"bovine pentru lapte;"]
[null,null,null,null,null,null,null,"ovine şi caprine;"]
[null,null,null,null,null,null,null,"porcine;"]
[null,null,null,null,null,null,null,"păsări de curte"]
[null,null,null,null,null,"Mixte - culturi mixte;"]
[null,null,null,null,null,"Mixte - animale mixte;"]
[null,null,null,null,null,"Mixte - culturi şi creşterea animalelor, cu excepţia albinelor;"]
[null,null,null,null,null,"Albine ;"]
[null,null,null,null,null,"Altele"]
[null,null," - Sectorul obiectivului prevăzut în planul de afaceri:"]
[null,null,null,null,null,"Vegetal"]
[null,null,null,null,null,null,null,"culturi de câmp"]
[null,null,null,null,null,null,null,"horticultură"]
[null,null,null,null,null,null,null,"viticultură"]
[null,null,null,null,null,null,null,"culturi permanente (altele decât viticultura)"]
[null,null,null,null,null,"Zootehnic"]
[null,null,null,null,null,null,null,"bovine pentru carne;"]
[null,null,null,null,null,null,null,"bovine pentru lapte;"]
[null,null,null,null,null,null,null,"ovine şi caprine;"]
[null,null,null,null,null,null,null,"porcine;"]
[null,null,null,null,null,null,null,"păsări de curte"]
[null,null,null,null,null,"Mixte - culturi mixte;"]
[null,null,null,null,null,"Mixte - animale mixte;"]
[null,null,null,null,null,"Mixte - culturi şi creşterea animalelor, cu excepţia albinelor;"]
[null,null,null,null,null,"Albine ;"]
[null,null,null,null,null,"Altele"]
[]
[null,null," - Zona în care se află exploataţia:"]
[null,null,null,null,null,null,null,"zona normală;"]
[null,null,null,null,null,null,null,"zona montană;"]
[null,null,null,null,null,null,null,"zona cu constrângeri specifice;"]
[null,null,null,null,null,null,null,"zona cu constrângeri semnificative;"]
[]
[null,null," - Gradul de dotare al exploataţiei:"]
[null,null,null,null,null,null,null,"deţin baze de producţie specifice activităţii"]
[null,null,null,null,null,null,null,"nu deţin baze de producţie specifice activităţii"]
[null,null,null,null,null,null,null,null,null,null,"nu propun achizitii pentru realizarea bazei de producţie"]
[null,null,null,null,null,null,null,null,null,null,"propun achiziţii pentru realizarea bazei de producţie"]
[null,null," - Tipul producţiei:"]
[null,null,null,null,null,null,"Ecologică"]
[null,null,null,null,null,null,"Convenţională"]
[]
[null,"A7",null,null,null,"Declar pe propria răspundere că nu am accesat PNA 2014-2016"]
[null,null,null,null,null,"Declar pe proprie răspundere că nu voi accesa PNA 2017-2019 între momentul depunerii Cererii de Finanţare la PNDR 2014-2020 şi momentul acordării celei de-a doua tranşe de plată din PNDR 2014-2020;"]
[null,null,null,null,null,"Declar pe propria răspundere că am accesat PNA 2014-2016 şi am beneficiat de finanţare pentru următoarele achiziţii (pentru care nu voi solicita finanţare din PNDR 2014-2020 ):"]
["Anul accesării:",null,null,null,null,null,null,null,null," Produse Achiziţionate prin program:"]
[]
[]
[]
[]
[]
[null,null,null,null,null,"Declar pe propria răspundere că nu voi solicita finanţare din PNDR 2014-2020 pentru următoarele achiziţii pe care intenţionez să le decontez prin accesarea PNA 2017-2019:"]
[]
[]
[]
[]
[]
[]
[null,null,"A8 DETALII PRIVIND TERENUL EXPLOATAŢIEI CARE STĂ LA BAZA CALCULULUI SO:"]
[null,"Judeţ",null,null,null,null,null,null,null,null,null,null,null,null,null,null,"Comună",null,null,null,null,null,null,null,null,null,null,null,null,null,null,null,null,null,null,null,null,null,null,"Sat"]
[]
[null,"Modalităţi deţinere"]
[null,null,null,"Moştenire / Donaţie",null,null,null,null,null,null,null,null,null,null,null,null,"Număr de ha",null,null,null,null,null,null,null,"Blocul fizic",null,null,null,null,null,null,null," ","Parcela",null,null,null,null,null,null,null,null,null,null,null,null,"Tarlaua"]
[null,null,null,"Achiziţie"]
[null,null,null,"Arendă / Concesiune/ Comodat / Închiriere/ Dare temporă în administrare sau folosinţă"]
[null,"Persoana care a dat moştenirea/donaţia/vânzător/arendator/concedent/comodant/locator / Persoana care a dat temporar în administrare sau folosință"]
[null,"Nume si prenume / Denumire",null,null,null,null,null,null,null,null,null,null,null,null,null,null,null,null,null,null,null,null,null,null,null,null,null,"Cod unic înregistrare/Cod numeric personal",null,null,null,null,null,null,null,null,null,null,null,null,null,null,null,null,null,null,"Act identitate (serie/număr) cetăţeni străini"]
[]
[]
[null,"Notă: Pentru a adăuga o noua inregistrare accesaţi foaia (sheet) corespunzătoare sau click pe butonul din dreapta",null,null,null,null,null,null,null,null,null,null,null,null,null,null,null,null,null,null,null,null,null,null,null,null,null,null,null,null,null,null,null,null,null,null,null,null,null,null,null,null," "]
[]
[]
[null,null,"A9 Total punctaj estimat (autoevaluare) pentru criteriile de selecţie îndeplinite"]
[null,null,"Punctaj estimat (autoevaluare)"]
["Grilă criterii de selecție măsura M1/2A “DEZVOLTARE AGRO FERME”"]
["Nr. crt.",null,null,null,null,"Principii şi criterii de selecție",null,null,null,null,null,null,null,null,null,null,null,null,null,null,null,null,null,null,null,null,null,null,null,null,null,null,null,null,null,null,null,null,null,null,null,null,null,null,null,null,null,null,null,null,null,null,"Punctaj"]
[1,null,null,null,null,"Principiul promovarii investitiilor care creaza noi locuri de munca prin angajarea de forta de munca exclusiv din teritoriul GAL (inclusiv PFA/II nou constituite) -(25 puncte)"]
[null,null,null,null,null,"Pentru a se acorda punctajul la acest criteriu, trebuie ca proiectul depus sa vizeze crearea a minim 1 loc de munca pe perioada nedeterminata pentru o persoana cu domiciliul in teritoriul GAL."]
[2,null,null,null,null,"Principiul promovarii investitiilor care sunt ”prietenoase cu mediul” (15 puncte)"]
[null,null,null,null,null,"Pentru a se acorda punctajul la acest criteriu, trebuie ca proiectul sa includa cel putin o activitate ”prietenoasa cu mediul” prin includerea actiunii in cadrul obiectivelor prevazute in cadrul planului de afaceri (de exemplu: folosesc sau propun: adoptarea unor culturi rezistente la schimbari climatice, sisteme de irigatii cu reducerea consumului de apa, imbunatatirea gestionarii surselor de poluare prin gestionarea gunoiului de grajd sau prin utilizarea de ingrasaminte naturale, comercializarea de resturi vegetale in vederea fabricarii de brichete/ peleti folositi in producerea de energie termica etc.). "]
[3,null,null,null,null,"Principiul promovarii investitiilor care  sunt initate de tineri cu varsta de pana in 40 ani la momentul depunerii cererii de finantare cu competente in domeniul agricol sau absolventi de studii superioare (15 puncte)"]
[null,null,null,null,null,"Pentru a se acorda punctajul aferent acestui criteriu se va verifica daca proiectul este propus de un tanar cu varsta mai mica de 40 de ani la data depunerii cererii de finantare ce detine competente in domeniul agricol sau este absolvent de studii superioare."]
[4,null,null,null,null,"Principiul incurajarii proiectelor initiate de solicitanti ce provin din familii de fermieri (5 puncte)"]
[null,null,null,null,null,"Pentru a se acorda punctajul aferent acestui criteriu se va verifica daca proiectul este propus de un solicitant ce provine dintr-o  familie de fermieri care a activat în agricultură o perioada de  minim 12 luni in ultimii 5 ani într-un  UAT  din teritoriul GAL"]
[5,null,null,null,null,"Principiul promovarii proiectelor care sunt initate de tineri cu varsta de pana in 40 ani la momentul depunerii cererii de finantare ce fac parte din familii nou infiintate, casatoriti recent, fara a depasi o perioada de cel mult 12 luni inaintea datei depunerii proiectului si au domiciliul in localitatea in care detin exploatatia agricola sau in localitatile invecinate cu localitatea in care detine exploatatia agricola (5 puncte)"]
[null,null,null,null,null,"Pentru a se acorda punctajul aferent acestui criteriu se va verifica daca proiectul este initiat de un tanar cu varsta mai mica de 40 de ani la data depunerii cererii de finantare ce face parte dintr-o familie nou infiintata, casatorit recent fara a depasi o perioada de cel mult 12 luni inaintea datei depunerii proiectului si are domiciliul in localitatea in care detine exploatatia agricola sau in localitatile invecinate cu localitatea in care detine exploatatia agricola."]
[6,null,null,null,null,"Principiul promovarii proiectelor initiate de catre propun activitati inovative pentru zona si isi prevad in planul de afaceri investitii pentru introducerea de noi tehnologii (10 puncte)"]
[null,null,null,null,null,"Pentru a se acorda punctajul la acest criteriu, trebuie ca proiectul sa includa cel putin o activitate inovativa pentru zona si solicitantul  sa isi prevada in planul de afaceri cheltuieli cu achizitionarea de tehnologii noi in respectivul domeniu de activitate prin includerea actiunii in cadrul obiectivelor suplimentare prevazute in cadrul planului de afaceri."]
[7,null,null,null,null,"Principiul incurajarii proiectelor initiate de solicitanti care sunt sau se angajeaza ca se vor inscrie ca membri ai unei forme asociative  din teritoriul GAL Ada Kaleh pana la solicitarea transei 2 de plata (15 puncte)"]
[null,null,null,null,null,"Pentru a se acorda punctajul aferent acestui criteriu se verifica daca solicitantul este sau se angajeaza ca se va inscrie ca membru al unei forme asociative din teritoriul GAL pana la solicitarea transei 2 de plata."]
[8,null,null,null,null,"Principiul promovarii investitiilor derulate de catre solicitantii care se incadreaza in categoria ferme de familie conform definitiei din Capitolul 8.1 din PNDR (5 puncte)"]
[null,null,null,null,null,"Pentru a se acorda punctajul la acest criteriu, trebuie ca proiectul sa fie initiat de un solicitant care se incadreaza in categoria ferme de familie conform definitiei din Capitolul 8.1 din PNDR (Ferma de familie - reprezintă exploataţia agricolă aparţinând întreprinderii familiale sau persoanei juridice ai cărei asociaţi sunt exclusiv membri ai aceleiaşi familii. Dimensiunea economică a fermei de familie în accepţiunea acestei măsuri este cuprinsă între 4.000 - 7.999 S.O. Prin membrii aceleiaşi familii se înţelege soţul/ soţia şi rudele până la gradul III inclusiv). "]
[9,null,null,null,null,"Principiul promovarii investitiilor ce vizeaza domenii de activitate cu potential specifice zonei (apicultura, zootehnie) (5 puncte)"]
[null,null,null,null,null,"Pentru a se acorda punctajul la acest criteriu, trebuie ca proiectul sa fie initiat de un solicitant care activeaza majoritar in domenii de activitate cu potential specifice zonei (apicultura, zootehnie) sunt fermieri ce detin ferme in cadrul carora componenta majoritară măsurată în S.O. din total exploataţie este in domeniul apicultura, zootehnie"]
["TOTAL",null,null,null,null,null,null,null,null,null,null,null,null,null,null,null,null,null,null,null,null,null,null,null,null,null,null,null,null,null,null,null,null,null,null,null,null,null,null,null,null,null,null,null,null,null,null,null,null,null,null,null,{"$f":"BA182+BA184+BA186+BA188+BA190+BA192+BA194+BA196","v":0}]
[]
["B INFORMAŢII PRIVIND SOLICITANTUL"]
["B1 Descrierea solicitantului"]
[null,"B1.1 Informaţii privind solicitantul"]
[null,"Data înființării",null,null,null,null,null,null,null,null,null,null,null,null,null,null,null,null,null,"Cod Unic de Înregistrare și/sau Codul de",null,null,null,null,null,null,null,null,null,null,null,null,null,null,null,null,null,null,null,null,null,null,null,null,null,null,"Statut juridic al solicitantului"]
[null,null,null,null,null,null,null,null,null,null,null,null,null,null,null,null,null,null,null,"Înregistrare Fiscală"]
[]
[]
[null,"Număr de înregistrare în registrul comerțului"]
[]
[null,"Codul CAEN al activităţii/activităţilor finanţate prin proiect"]
[]
[null,"Codul unic de înregistrare APIA",null,null,null,null,null,null,null,null,null,null,null,null,null,null,null,null,null,null,null,null,null,null,null,null,null,null,null,null,null,null,null,null,null,null,null,null,null,"Anul atribuirii codului"]
[]
[null,"Cod Registru Naţional al Exploataţiilor ANSVSA",null,null,null,null,null,null,null,null,null,null,null,null,null,null,null,null,null,null,null,null,null,null,null,null,null,null,null,null,null,null,null,null,null,null,null,null,null,null,null,null,"Anul atribuirii codului"]
[]
[null,"B1.2 Sediul social / Domiciliul stabil al solicitantului / Reşedinţa din România"]
[null,"Judeţ",null,null,null,null,null,null,null,null,null,null,null,null,null,null,null,null,null,null,null,null,null,"Localitate",null,null,null,null,null,null,null,null,null,null,null,null,null,null,null,null,null,null,null,null,null,"Sat"]
[]
[null,"Cod Poştal",null,null,null,null,null,null,null,null,null,"Strada",null,null,null,null,null,null,null,null,null,null,null,null,null,null,null,null,null,null,null,null,null,null,null,"Nr.",null,null,null,null,null,null,"Bloc",null,null,null,null,"Scara",null,null,null,null,"Et. ",null,null,null,"Ap."]
[]
[null,"Telefon fix",null,null,null,null,null,null,null,null,null,null,"Telefon mobil",null,null,null,null,null,null,null,null,null,null,null,"Fax",null,null,null,null,null,null,null,null,null,null,null,null,null,null,null,"E-mail"]
[]
[null,"Telefon fix/ mobil",null,null,null,null,null,null,null,null,null,null,null,null,null,null,null,null,null,null,"Fax",null,null,null,null,null,null,null,null,null,null,null,null,null,null,null,null,null,null,"E-mail"]
[]
[]
[null,"B1.3 Numele şi prenumele reprezentantului legal şi funcţia acestuia în cadrul organizaţiei, precum şi"]
[null,"specimenul de semnatură:"]
[]
[null,null,null,"Numele",null,null,null,null,null,null,null,null,null,null,"Prenumele",null,null,null,null,null,null,null,null,null,null,null,"Funcţia",null,null,null,null,null,null,null,null,null,null,null,null,"Reprezentant legal",null,null,null,null,null,null,null,null,null,null,"Specimen de"]
[null,null,null,null,null,null,null,null,null,null,null,null,null,null,null,null,null,null,null,null,null,null,null,null,null,null,null,null,null,null,null,null,null,null,null,null,null,null,null,null,null,null,null,null,null,null,null,null,null,null,"semnătură"]
[]
[null,null,null,null,null,null,null,null,null,null,null,null,null,null,null,null,null,null,null,null,null,null,null,null,null,null,null,null,null,null,null,null,null,null,null,null,null,null,null,"LEGAL"]
[]
[null,"Nivel de studii şi denumirea instituţiei care a emis documentul"]
[]
[]
[]
["B2 Informaţii referitoare la reprezentantul legal de proiect"]
[null,"B2.1 Date de identitate ale reprezentantului legal de proiect"]
[]
[null,null,null,"Data naşterii",null,null,null,null,null,null,null,null,null,null,null,null,null,null,null,null,null,null,null,null,null,"Cod numeric personal"]
[]
[]
[]
[null,null,null,null,"Act de identitate",null,null,null,null,null,null,null,null,null,null,null,null,null,"Seria",null,null,null,"Nr.",null,null,null,null,null,null,"Eliberat la data de",null,null,null,null,null,null,null,null,null,null,"de:",null,null,null,null,null,null,null,null,null,null,null,null,null,"Valabil până la:"]
[null,null,null,null,"B.I.",null,null,"C.I.",null,null,"Paşaport"]
[]
[]
[null," Date de identitate ale soţului / soţiei:"]
[null,null,null,"Data naşterii",null,null,null,null,null,null,null,null,null,null,null,null,null,null,null,null,null,null,null,null,null,"Cod numeric personal"]
[]
[]
[]
[null,null,null,null,"Act de identitate",null,null,null,null,null,null,null,null,null,null,null,null,null,"Seria",null,null,null,"Nr.",null,null,null,null,null,null,"Eliberat la data de",null,null,null,null,null,null,null,null,null,null,"de:",null,null,null,null,null,null,null,null,null,null,null,null,null,"Valabil până la:"]
[null,null,null,null,"B.I.",null,null,"C.I.",null,null,"Paşaport"]
[]
[]
[]
[null,null,null,null,"Asociat unic",null,null,null,null,null,null,null,null,null,null,"Asociat majoritar",null,null,null,null,null,null,null,null,null,null,null,null,null,"Administrator"]
[]
[]
[null,null,"Asociaţi"]
[]
[null,null,null,"Nume si prenume asociat"]
[]
[null,null,null,"Data naşterii",null,null,null,null,null,null,null,null,null,null,null,null,null,null,null,null,null,null,null,null,null,"Cod numeric personal"]
[]
[]
[]
[null,null,null,null,"Act de identitate",null,null,null,null,null,null,null,null,null,null,null,null,null,"Seria",null,null,null,"Nr.",null,null,null,null,null,null,"Eliberat la data de",null,null,null,null,null,null,null,null,null,null,"de:",null,null,null,null,null,null,null,null,null,null,null,null,null,"Valabil până la:"]
[null,null,null,null,"B.I.",null,null,"C.I.",null,null,"Paşaport"]
[]
[]
[null,"Notă: Pentru a adăuga o noua inregistrare accesaţi foaia (sheet) corespunzătoare sau click pe butonul din dreapta"]
[]
[]
[null,"B2.2 Domiciliul stabil al reprezentantului legal de proiect"]
[null,"Judeţ",null,null,null,null,null,null,null,null,null,null,null,null,null,null,null,null,null,null,null,null,null,"Localitate",null,null,null,null,null,null,null,null,null,null,null,null,null,null,null,null,null,null,null,null,null,"Sat"]
[]
[null,"Cod Poştal",null,null,null,null,null,null,null,null,null,null,"Strada",null,null,null,null,null,null,null,null,null,null,null,null,null,null,null,null,null,null,"Nr.",null,null,null,null,null,null,null,"Bloc",null,null,null,null,null,null,null,null,null,null,null,"Scara",null,null,null,null,null,"Ap."]
[]
[null,"Telefon fix",null,null,null,null,null,null,null,null,null,null,null,null,null,null,null,null,null,null,"Telefon mobil",null,null,null,null,null,null,null,null,null,null,null,null,null,null,null,null,null,null,null,null,"Fax"]
[]
[null,"E-mail"]
[]
[]
[null,"B2.3 Locul de munca al reprezentantului legal de proiect"]
[]
[null,"Denumire angajator:"]
[null,"Judeţ",null,null,null,null,null,null,null,null,null,null,null,null,null,null,null,null,null,null,null,null,"Localitate",null,null,null,null,null,null,null,null,null,null,null,null,null,null,null,null,null,null,null,"Sat"]
[]
[null,"Cod Poştal",null,null,null,null,null,null,null,null,null,null,"Strada",null,null,null,null,null,null,null,null,null,null,null,null,null,null,null,null,null,"Nr.",null,null,null,null,null,"Bloc",null,null,null,null,null,null,null,null,null,null,null,"Scara",null,null,null,null,null,"Ap."]
[]
[null,"Telefon fix",null,null,null,null,null,null,null,null,null,null,null,null,null,null,null,null,null,null,"Telefon mobil",null,null,null,null,null,null,null,null,null,null,null,null,null,null,null,null,null,"Fax"]
[]
[null,"E-mail"]
[]
[]
[null,null,null,"* subsectiunea B 2.3 nu se completeaza"]
[]
[]
["B3 Informaţii privind contul bancar pentru Proiectul F.E.A.D.R. "]
[]
[null,null,"B3.1 Denumirea Institutiei Financiar Bancară",null,null,null,null,null,null,null,null,null,null,null,null,null,null,null,null,null,null,null,null,null,null,null,null,null,null,null,"Denumirea Sucursalei/Filialei/Agenției instituției Financiar Bancare"]
[]
[]
[null,null,"B3.2 Adresa Sucursalei/Filialei/Agenției instituției Financiar-Bancare"]
[]
[]
[null,null,"B3.3 Cod-ul IBAN al contului Bancar",null,null,null,null,null,null,null,null,null,null,null,null,null,null,null,null,null,null,null,null,null,null,null,null,null,null,null,null,null,"B3.4 Titularul contului bancar"]
[]
[]
[]
["B4 Date privind consultantul"]
[]
[null,"Denumirea Consultantului"]
[]
[null,"Codul Unic de Înregistrare",null,null,null,null,null,null,null,null,null,null,null,null,null,null,null,null,null,null,null,null,null,null,null,null,null,null,null,null,"Nr. înregistrare ONRC"]
[]
["C FINANȚĂRI NERAMBURSABILE solicitate și /sau obținute"]
[null,null,"C. Solicitantul a mai obținut finanțări nerambursabile ? Detailați cu datele solicitate in tabelul de mai jos*"]
[]
[]
[]
[null,"DENUMIRE PROGRAM FINANȚARE",null,null,null,null,null,null,null,null,null,null,null,null,"Număr proiecte",null,null,null,null,"Titlul Proiectui / Codul contractului/ Deciziei de finanțare ***",null,null,null,null,null,null,null,null,null,null,null,null,null,null,null,null,null,null,null,null,null,"Data accesării/ finalizării",null,null,null,null,null,"Valoarea accesării\nsprijinului\n(EUR)",null,null,null,null,null,null,null,null,"DA",null,null,null,"NU"]
[null,"Program Naţional Apicol (PNA)",null,null,null,null,null,null,null,null,null,null,null,null,null,null,null,null,null,null,null,null,null,null,null,null,null,null,null,null,null,null,null,null,null,null,null,null,null,null,null,null,null,null,null,null,null,null,null,null,null,null,null,null,null,null,null,2]
[null,"Programul Naţional de Sprijin al României în sectorul vitivinicol (PNS)"]
[null,"FEADR **"]
[null,"Alte programe europene**"]
[null,"Alte programe europene**"]
[null,"Alte programe europene**"]
[null,"Alte programe internaționale**"]
[null,"Alte programe internaționale**"]
[null,"Alte programe internaționale**"]
[null,null,null,"* se completează indiferent dacă solicitantul a obţinut / nu a obţinut finanţări nerambursabile"]
[null,null,null,"** se completează de către solicitant cu denumirea programului"]
[null,null,null,"*** se completează în funcţie de tipul proiectului"]
[]
["MINISTERUL AGRICULTURII ŞI DEZVOLTĂRII RURALE",null,null,null,null,null,null,null,null,null,null,null,null,null,null,null,null,null,null,null,null,null,null,null,null,null,null,null,null,null,null,"SECTIUNE SPECIFICA MĂSURA M1/2A"]
["AGENŢIA PENTRU FINANŢAREA INVESTIŢIILOR RURALE"]
[]
[]
["D. LISTA DOCUMENTELOR ANEXATE PROIECTELOR AFERENTE MĂSURII M1/2A",null,null,null,null,null,null,null,null,null,null,null,null,null,null,null,null,null,null,null,null,null,null,null,null,null,null,null,null,null,null,null,null,null,null,null,null,null,null,null,null,null,null,null,null,null,null,null,null,null,null,null,null,null,null,null,null,null,"OPIS"]
[null,null,null,null,null,null,null,null,null,null,null,null,null,null,null,null,null,null,null,null,null,null,null,null,null,null,null,null,null,null,null,null,null,null,null,null,null,null,null,null,null,null,null,null,null,null,null,null,null,null,null,null,null,null,null,null,null,null,"documente"]
["A se anexa documentele în ordinea de mai jos:"]
["Lista documente",null,null,null,null,null,null,null,null,null,null,null,null,null,null,null,null,null,null,null,null,null,null,null,null,null,null,null,null,null,null,"Obligatoriu pentru toate proiectele",null,null,null,null,null,null,"Obligatoriu, dacă proiectul impune",null,null,null,null,null,null,"PAGINA de   la - până la",null,null,null,null,null,null,null,"Obligatoriu pentru toate proiectele",null,null,null,null,"Obligatoriu, dacă proiectul impune"]
["Documente specifice etapei",null,null,null,null,null,null,null,null,null,null,null,null,null,null,null,null,null,null,null,null,null,null,null,null,null,null,null,null,null,null,"DEPUNERE",null,null,null,null,null,null,null,null,null,null,null,null,null,null,null,null,null,null,null,null,null,"CONTRACTARE"]
["1. Planul de afaceri pentru dezvoltarea exploataţiei (în original)"]
["2. Copiile documentelor de proprietate/ folosinţă pentru exploataţia agricolă \n \na) Pentru terenul agricol:\n• documentul care atestă dreptul de proprietate asupra terenului agricol conform prevederilor legislaţiei în vigoare (contract de vânzare - cumpărare autentificat de notar, act de donaţie autentificat de notar, hotarâre judecatorească definitivă şi irevocabilă cu punere în posesie, certificat de moştenitor unic autentificat de notar, precum şi alte documente care demonstrează terţilor dreptul de proprietate conform prevederilor legislaţiei în vigoare autentificate la notar),"]
["şi/sau\n• tabelul centralizator cu suprafeţele luate în arendă pe categorii de folosinţă şi perioade de arendare, emis de Primărie, semnat de persoanele autorizate conform prevederilor legislaţiei în vigoare (care să conţină sumarul contractelor de arendare valabile la data depunerii Cererii de Finanţare); In cazul exploataţiilor care presupun înfiinţarea si/sau reconversia plantaţiilor pomicole, documentele trebuie sa fie valabile cel putin 15 ani începând cu anul depunerii cererii de finanţare, cu excepţia pepinierelor, culturilor de căpşun, zmeur, mur, coacăz şi agriş, unde perioada minimă este de 10 ani. "]
["şi/sau\n• contractul de concesiune valabil la data depunerii Cererii de Finanţare însoţit de adresa emisă de concedent care conţine situaţia privind respectarea clauzelor contractuale, dacă este în graficul de realizare a investiţiilor prevăzute în contract şi alte clauze; In cazul exploataţiilor care presupun înfiinţarea si/sau reconversia plantaţiilor pomicole, documentele trebuie sa fie valabile cel putin 15 ani începând cu anul depunerii cererii de finanţare, cu excepţia pepinierelor, culturilor de căpşun, zmeur, mur, coacăz şi agriş, unde perioada minimă este de 10 ani. "]
["şi/sau\n• contractul de comodat/contractul de închiriere/ documentul potrivit căruia suprafața de teren a fost dată temporar în administrare/ folosință"]
["şi/sau\n• document notarial care atestă constituirea patrimoniului de afectaţiune"]
["şi/sau\n• documentele pentru terenul ce constituie vatra stupinei: acte de proprietate conform legislaţiei în vigoare, sau contract de concesiune/ contract de arendă/ contract de închiriere/ contract de comodat valabile la data depunerii Cererii de finanţare. Suprafaţa de teren eligibilă pentru vatra stupinei este de minim 5mp/stup şi 50 mp pentru fiecare pavilion apicol."]
["b) Pentru construcţii permanente, conform prevederilor Legii nr. 50/1991, cu modificările și completările ulterioare:\n• documentul care atestă dreptul real principal asupra construcţiei: drept de proprietate, uz, uzufruct, superficie, servitute, concesiune (dobândit prin act autentic notarial de ex.: contract de vânzare-cumpărare, de schimb, de donaţie, certificat de moştenitor, act administrativ de restituire, hotărâre judecătorească)."]
["c) Pentru construcţii provizorii, conform prevederilor Legii nr. 50/1991, cu modificările și completările ulterioare:\n• documentul care atestă dreptul real principal asupra construcției: drept de proprietate, uz, uzufruct, superficie, servitute (dobândit prin act autentic notarial de ex.: contract de vânzare-cumpărare, de schimb, de donație, certificat de moștenitor, act administrativ de restituire, hotărâre judecătorească, lege)"]
[" sau\n• documentul care atestă dreptul de creanţă asupra construcţiei dobândit prin: concesiune, comodat, locaţiune. În cazul prezentării contractului de comodat/locațiune pentru construcțiile cu caracter provizoriu, conform prevederilor Legii nr. 50/1991, cu modificările și completările ulterioare, solicitantul trebuie să atașeze și acordul expres al proprietarului de drept."]
["d) Pentru animale, păsări şi familii de albine:\n• Extras din Registrul Exploataţiei din care să rezulte efectivul de animale (suine, bovine, ovine, caprine) deţinut actualizat cu cel mult 30 de zile înaintea datei depunerii Cererii de finanţare "]
["\n• copia adeverintei ANZ din care sa rezulte codul de identificare a stupinei si stupilor, numarul familiilor de albine  actualizat cu cel mult 30 de zile inaintea depunerii cererii de finantare; "]
["• PAŞAPORTUL emis de ANZ pentru ecvideele (cabalinele) cu rasă şi origine"]
["• Pentru exploataţiile mixte şi zootehnice: Copia Registrului agricol emis de Primărie actualizată cu cel mult 30 de zile înaintea datei depunerii Cererii de finanţare, din care să rezulte dreptul de folosinţă (proprietate/arendă/concesiune) al terenului, dreptul de proprietate asupra animalelor (toate categoriile de animale domestice şi sălbatice aflate în captivitate în cadrul exploataţiei), cu ştampila primăriei şi menţiunea  \"Conform cu originalul\".  "]
["şi\n• Pentru exploataţiile vegetale: Copia Registrului Agricol emis de Primărie actualizată în anul depunerii Cererii de Finanţare, din care să rezulte dreptul de folosinţă (proprietate/arendă/concesiune) al terenului, dreptul de proprietate asupra animalelor (toate categoriile de animale domestice şi sălbatice aflate în captivitate în cadrul exploataţiei), cu ştampila primăriei şi menţiunea \"Conform cu originalul\"."]
["• Extras din Registrul Unic de Identificare de la APIA din care să rezulte suprafetele declarate de catre solicitant in ultima perioadă de depunere (înregistrare/actualizare) a cererii unice de plată pe suprafaţă în IACS stabilită conform prevederilor legislatiei nationale în vigoare"]
["3. Copiile situaţiilor financiare pentru anii  “n” si “n-1”, unde “n” este anul anterior anului în care solicitantul depune Cererea de Finanţare, înregistrate la Administraţia Financiară:\na)Pentru societăţi comerciale: \n• Bilanţul (cod 10);"]
["• Contul de profit şi pierderi (cod 20);"]
["• Datele informative (cod 30);"]
["• Situaţia activelor imobilizate (cod 40)."]
["ŞI/SAU \n• Declaraţia de inactivitate (pentru societăţile înfiinţate în anii \"n\" şi/sau \"n-1\", care nu au avut activitate).\n \nSocietăţile comerciale înfiinţate în anul 2019 nu au obligaţia depunerii acestor documente."]
["b)Pentru persoane fizice autorizate, întreprinderi individuale şi întreprinderi familiale:            • Declaraţia unică privind impozitul pe venit și contribuțiile sociale datorate de persoanele fizicie (Formularul 212)         \n"]
["ŞI/SAU \n• Declaraţia privind veniturile realizate (Formularul 200 - cod 14.13.01.13);"]
["ŞI/SAU \n• Declaraţia privind veniturile din activităţi agricole - impunere pe normele de venit (Formularul 221 - cod 14.13.01.13/9), în cazul solicitanţilor care în anii \"n\" şi \"n-1\" sunt autorizaţi conform OUG.44/2008, cu modificările şi completările ulterioare, care au optat pentru calcularea venitului net pe bază de norme de venit.\n \nPersoanele fizice autorizate, întreprinderile individuale şi întreprinderile familiale înfiinţate în anul 2019 nu au obligaţia depunerii acestor documente."]
["4. Certificatul care să ateste lipsa datoriilor restante fiscale şi sociale emise de Direcţia Generală a Finanţelor Publice, iar în cazul în care solicitantul este proprietar asupra imobilelor, se va depune Certificat emis de Primăria de pe raza     cărora îşi au sediul social şi punctele de lucru."]
["5. Copia actului de identitate al reprezentantului legal de proiect (asociat unic/asociat majoritar/administrator)"]
["6. Hotarârea adunării generale a asociaţiilor(AGA) persoanei juridice, prin care se desemnează reprezentantul legal sau administratorul (Acţionar Majoritar 50%+1) care să reprezinte societatea în relaţia cu AFIR şi care exercită un control efectiv pe teren lung  în ceea ce priveşte deciziile referitoare la gestionare, beneficii, riscuri financiare în cadrul exploataţiei respective"]
["7. Documentele care demonstrează gradul de rudenie între asociaţi / membrii familiei din cadrul microintreprinderii / întreprinderii mici (copiile actelor de identitate, alte documente relevante) "]
["8. Copia diplomei de absolvire/ certificatului de calificare profesională/ certificatului de absolvire/ certificatului de competenţe profesionale/ documentului emis în urma absolvirii cursurilor de instruire/ documentului care atestă absolvirea învăţământului minim:"]
["•  diploma de absolvire se ataşează în cazul studiilor superioare (diploma de doctor, diploma de disertatie, diploma de licenţă)"]
["• diploma de absolvire a studiilor postliceale (diploma/ certificatul de absolvire)/ liceale (diploma de bacalaureat) în domeniul agricol/ agro-alimentar/ veterinar/ economei agrare;"]
["• certificatul de calificare profesională se ataşează în cazul cursurilor de calificare/ recalificare în domeniul agricol/ agro-alimentar/ veterinar/ economiei agrare realizate de către furnizori de formare profesională a adulţilor autorizaţi pentru respectivul program de formare profesională (minim Nivelul I). De asemenea  sunt  acceptate şi certificatele de absolvire a cursurilor de calificare emise de ANCA în domeniul agricol, agro-alimentar, vetrerinar sau economie agrară."]
["• document de recunoaştere a competenţelor profesionale obţinute pe alte căi decât cele formale, care trebuie de asemenea să fie autorizat de Autoritatea Naţională pentru Calificări"]
["• certificatul de absolvire se ataşează în cazul cursurilor de perfecţionare/ specializare/ iniţiere în domeniul  agricol/ agro-alimentar/ veterinar/ economiei agrare realizate de către furnizori de formare profesională a adulţilor autorizaţi pentru respectivul program de formare profesională sau documentul echivalent acestuia; (sub numărul de ore aferent Nivelului I de calificare profesională)"]
["9. Cazierul judiciar, în original, al reprezentantului legal care să ateste lipsa înscrierilor care privesc sancţiuni penale în domeniul economico-financiar, valabil la data încheierii contractului - poate fi solicitat de către AFIR, în conformitate cu prevederile Legii nr.290/2004 privind cazierul judiciar, republicată, cu modificările şi completările ulterioare."]
["10.  Copia contractului de colectare a gunoiului de grajd încheiat între solicitant şi deţinătorul platformei"]
["sau \n     Copia adeverinţei emisă de Primăria comunei pe teritoriul căreia se regăseşte platforma comunală, din care să rezulte faptul că aceasta va prelua gunoiul de grajd din exploataţia solicitantului"]
["11. Documentul emis de ANSVSA prin care se certifică înregistrarea exploataţiei ca fiind exploataţie comercială de tip A, conform prevederilor Ordinului nr.16/2010, cu modificările şi completările ulterioare."]
["12. Copiile documentelor emise de autoritățile de mediu, sanitar, sanitar-veterinar, dacă este cazul;"]
["13. Documentul emis de instituţia financiar-bancară în care să se menţioneze denumirea şi adresa instituţiei financiar-bancare, titularul contului, CUI-ul titularului şi codul IBAN al contului prin care se derulează proiectul FEADR."]
["14. Documente care atestă forma de organizare a solicitantului"]
["14.1 Copie Certificat de inregistrare emis de ONRC"]
["14.2. Copie Certificat constatator fonduri IMM insotit de “Furnizare informații extinse” emise de ONRC pentru solicitant valabil la momentul depunerii cererii de finantare."]
["15. Declaratia pe propria raspundere a beneficiarului privind raportarea platilor primite catre GAL"]
["16. Declaratia pe propria raspundere a solicitantului privind indeplinirea criteriului de selectie                                                                  "]
["17. Declaratie intocmita si asumata prin semnatura de un expert contabil prin care sa certifice incadrarea in categoria de start-up (entitate înfiinţată în anul depunerii cererii de finanţare sau cu o vechime de maximum 3 ani fiscali consecutivi, dar care nu a desfăşurat activităţi până în momentul depunerii acesteia)                                                                 "]
["18. Adeverinta privind calitatea de membru al unei forme asociative"]
["19. Declaratia pe propria raspundere a solicitantului privind indeplinirea conditiilor de eligibilitate"]
["20. Declaratie incadrare in categoria de micro-intreprindere si intreprindere mica"]
["21. Extras din Registrul Agricol/Baza de date APIA / Registrul National al Exploatatiilor prin care se demonstreaza ca exploatatia a fost inregistrata pe numele solicitantului/ persoanei fizice aferente solicitantului cu cel puţin 12 luni înainte de solicitarea sprijinului"]
["22. Alte documente justificative pe care solicitantul le consideră relevante pentru proiect (dacă este cazul)"]
[]
[]
[]
[]
["E. LISTA COEFICIENŢILOR DE CALCUL AI PRODUCŢIEI STANDARD PENTRU VEGETAL / ZOOTEHNIE 8)"]
["CALCULUL COEFICIENȚILOR DE PRODUCȚIE STANDARD PENTRU VEGETAL"]
["Coduri EUROSTAT",null,null,null,null,null,null,null,null,"Denumire culturi",null,null,null,null,null,null,null,null,null,null,null,null,null,null,null,null,null,null,null,null,null,"Suprafaţa       (ha)",null,null,null,null,null,null,null,null,null,"SO 2013         euro/ha",null,null,null,null,null,null,null,null,null,"SO"]
[0,null,null,null,null,null,null,null,null,1,null,null,null,null,null,null,null,null,null,null,null,null,null,null,null,null,null,null,null,null,null,2,null,null,null,null,null,null,null,null,null,3,null,null,null,null,null,null,null,null,null,4]
["B_1_1_1",null,null,null,null,null,null,null,null,"Grâu comun",null,null,null,null,null,null,null,null,null,null,null,null,null,null,null,null,null,null,null,null,null,null,null,null,null,null,null,null,null,null,null,614.09,614.09,614.09,614.09,614.09,614.09,614.09,614.09,614.09,614.09,{"$f":"AF407*AP407","v":0}]
["B_1_1_2",null,null,null,null,null,null,null,null,"Grâu dur",null,null,null,null,null,null,null,null,null,null,null,null,null,null,null,null,null,null,null,null,null,null,null,null,null,null,null,null,null,null,null,432.81,432.81,432.81,432.81,432.81,432.81,432.81,432.81,432.81,432.81,0]
["B_1_1_3",null,null,null,null,null,null,null,null,"Secară",null,null,null,null,null,null,null,null,null,null,null,null,null,null,null,null,null,null,null,null,null,null,null,null,null,null,null,null,null,null,null,354.27,354.27,354.27,354.27,354.27,354.27,354.27,354.27,354.27,354.27,0]
["B_1_1_4",null,null,null,null,null,null,null,null,"Orz+Orzoaică",null,null,null,null,null,null,null,null,null,null,null,null,null,null,null,null,null,null,null,null,null,null,null,null,null,null,null,null,null,null,null,529.44000000000005,529.44000000000005,529.44000000000005,529.44000000000005,529.44000000000005,529.44000000000005,529.44000000000005,529.44000000000005,529.44000000000005,529.44000000000005,0]
["B_1_1_5",null,null,null,null,null,null,null,null,"Ovăz",null,null,null,null,null,null,null,null,null,null,null,null,null,null,null,null,null,null,null,null,null,null,null,null,null,null,null,null,null,null,null,331.88,331.88,331.88,331.88,331.88,331.88,331.88,331.88,331.88,331.88,0]
["B_1_1_6",null,null,null,null,null,null,null,null,"Porumb boabe",null,null,null,null,null,null,null,null,null,null,null,null,null,null,null,null,null,null,null,null,null,null,null,null,null,null,null,null,null,null,null,641.79999999999995,641.79999999999995,641.79999999999995,641.79999999999995,641.79999999999995,641.79999999999995,641.79999999999995,641.79999999999995,641.79999999999995,641.79999999999995,0]
["B_1_1_7",null,null,null,null,null,null,null,null,"Orez",null,null,null,null,null,null,null,null,null,null,null,null,null,null,null,null,null,null,null,null,null,null,null,null,null,null,null,null,null,null,null,913.26,913.26,913.26,913.26,913.26,913.26,913.26,913.26,913.26,913.26,0]
["B_1_1_99",null,null,null,null,null,null,null,null,"Alte cereale:  sorg, hrişca, mei, triticale, iarba-cănăraşului, altele",null,null,null,null,null,null,null,null,null,null,null,null,null,null,null,null,null,null,null,null,null,null,null,null,null,null,null,null,null,null,null,452.74,452.74,452.74,452.74,452.74,452.74,452.74,452.74,452.74,452.74,0]
["B_1_2_1",null,null,null,null,null,null,null,null,"Mazăre boabe, fasole boabe, lupin dulce",null,null,null,null,null,null,null,null,null,null,null,null,null,null,null,null,null,null,null,null,null,null,null,null,null,null,null,null,null,null,null,533.77,533.77,533.77,533.77,533.77,533.77,533.77,533.77,533.77,533.77,0]
["B_1_2_2",null,null,null,null,null,null,null,null,"Linte, bob, năut şi măzăriche",null,null,null,null,null,null,null,null,null,null,null,null,null,null,null,null,null,null,null,null,null,null,null,null,null,null,null,null,null,null,null,454.79,454.79,454.79,454.79,454.79,454.79,454.79,454.79,454.79,454.79,0]
["B_1_3",null,null,null,null,null,null,null,null,"Cartofi(inclusiv cartofi noi, material săditor, cartof dulce destinat consumului uman)",null,null,null,null,null,null,null,null,null,null,null,null,null,null,null,null,null,null,null,null,null,null,null,null,null,null,null,null,null,null,null,3167.88,3167.88,3167.88,3167.88,3167.88,3167.88,3167.88,3167.88,3167.88,3167.88,0]
["B_1_4",null,null,null,null,null,null,null,null,"Sfeclă de zahăr",null,null,null,null,null,null,null,null,null,null,null,null,null,null,null,null,null,null,null,null,null,null,null,null,null,null,null,null,null,null,null,1449.74,1449.74,1449.74,1449.74,1449.74,1449.74,1449.74,1449.74,1449.74,1449.74,0]
["B_1_5",null,null,null,null,null,null,null,null,"Plante rădăcinoase pentru nutreț: sfecla furajeră, alte plante furajere din familia brasiceelor, napi furajeri, morcovi furajeri, batata(cartof dulce), păstârnac, ignama, manioc,alte rădăcinoase",null,null,null,null,null,null,null,null,null,null,null,null,null,null,null,null,null,null,null,null,null,null,null,null,null,null,null,null,null,null,null,1101.45,1101.45,1101.45,1101.45,1101.45,1101.45,1101.45,1101.45,1101.45,1101.45,0]
["B_1_6_1",null,null,null,null,null,null,null,null,"Tutun",null,null,null,null,null,null,null,null,null,null,null,null,null,null,null,null,null,null,null,null,null,null,null,null,null,null,null,null,null,null,null,1696.83,1696.83,1696.83,1696.83,1696.83,1696.83,1696.83,1696.83,1696.83,1696.83,{"$f":"AF420*AP420","v":0}]
["B_1_6_2",null,null,null,null,null,null,null,null,"Hamei",null,null,null,null,null,null,null,null,null,null,null,null,null,null,null,null,null,null,null,null,null,null,null,null,null,null,null,null,null,null,null,4105.24,4105.24,4105.24,4105.24,4105.24,4105.24,4105.24,4105.24,4105.24,4105.24,0]
["B_1_6_4",null,null,null,null,null,null,null,null,"Rapiţă",null,null,null,null,null,null,null,null,null,null,null,null,null,null,null,null,null,null,null,null,null,null,null,null,null,null,null,null,null,null,null,647.72,647.72,647.72,647.72,647.72,647.72,647.72,647.72,647.72,647.72,0]
["B_1_6_5",null,null,null,null,null,null,null,null,"Floarea soarelui",null,null,null,null,null,null,null,null,null,null,null,null,null,null,null,null,null,null,null,null,null,null,null,null,null,null,null,null,null,null,null,564.52,564.52,564.52,564.52,564.52,564.52,564.52,564.52,564.52,564.52,{"$f":"AF423*AP423","v":0}]
["B_1_6_6",null,null,null,null,null,null,null,null,"Soia",null,null,null,null,null,null,null,null,null,null,null,null,null,null,null,null,null,null,null,null,null,null,null,null,null,null,null,null,null,null,null,611,611,611,611,611,611,611,611,611,611,0]
["B_1_6_7",null,null,null,null,null,null,null,null,"In pentru ulei",null,null,null,null,null,null,null,null,null,null,null,null,null,null,null,null,null,null,null,null,null,null,null,null,null,null,null,null,null,null,null,1563.56,1563.56,1563.56,1563.56,1563.56,1563.56,1563.56,1563.56,1563.56,1563.56,0]
["B_1_6_8",null,null,null,null,null,null,null,null,"Alte plante pentru ulei: ricin, şofrănaş, susan, arahide, mac, muştar, alte culturi oleaginoase",null,null,null,null,null,null,null,null,null,null,null,null,null,null,null,null,null,null,null,null,null,null,null,null,null,null,null,null,null,null,null,374,374,374,374,374,374,374,374,374,374,0]
["B_1_6_9",null,null,null,null,null,null,null,null,"In pentru ulei",null,null,null,null,null,null,null,null,null,null,null,null,null,null,null,null,null,null,null,null,null,null,null,null,null,null,null,null,null,null,null,307.17,307.17,307.17,307.17,307.17,307.17,307.17,307.17,307.17,307.17,{"$f":"AF427*AP427","v":0}]
["B_1_6_10",null,null,null,null,null,null,null,null,"Cânepă",null,null,null,null,null,null,null,null,null,null,null,null,null,null,null,null,null,null,null,null,null,null,null,null,null,null,null,null,null,null,null,518.11,518.11,518.11,518.11,518.11,518.11,518.11,518.11,518.11,518.11,0]
["B_1_6_12",null,null,null,null,null,null,null,null,"Plante medicinale şi aromatice inclusiv ceaiul, cafeaua şi cicoarea pentru cafea: muşeţel, mătrăguna, menta, mac, angelica,chimen, genţiana, iasomia, lavanda, levănţica, origanul, şofranul, salvia,valeriana, gălbeneaua, etc.",null,null,null,null,null,null,null,null,null,null,null,null,null,null,null,null,null,null,null,null,null,null,null,null,null,null,null,null,null,null,null,937.85,937.85,937.85,937.85,937.85,937.85,937.85,937.85,937.85,937.85,{"$f":"AF429*AP429","v":0}]
["B_1_6_99",null,null,null,null,null,null,null,null,"Alte plante industriale: cicoarea, trestia de zahăr, alte plante tehnice nemenţionate în altă parte, sorgul tehnic (pentru mături)",null,null,null,null,null,null,null,null,null,null,null,null,null,null,null,null,null,null,null,null,null,null,null,null,null,null,null,null,null,null,null,717.56,717.56,717.56,717.56,717.56,717.56,717.56,717.56,717.56,717.56,0]
["B_1_7_1_1",null,null,null,null,null,null,null,null,"Legume proaspete, pepeni şi căpşuni - în câmp:\n- varza, conopidă, broccoli,\n- legume pentru frunze (praz, salată, spanac etc.), \n- tomate,\n- porumb dulce,\n- legume cultivate pentru fructe: vinete, ardei, dovleci şi dovlecei, castraveciori,\n- legume cultivate pentru rădăcină, bulbi, tuberculi (excepţie cartofi): morcovi, păstârnac, ceapă, usturoi, napi,\n- legume păstăi: fasole, mazăre, cu excepţia lintei şi a năutului,\n- fructele plantelor neperene: căpşuni, pepeni galbeni, pepeni verzi, ananas.",null,null,null,null,null,null,null,null,null,null,null,null,null,null,null,null,null,null,null,null,null,null,null,null,null,null,null,null,null,null,null,6196.49,null,null,null,null,null,null,null,null,null,{"$f":"AF431*AP431","v":0}]
["B_1_7_1_2",null,null,null,null,null,null,null,null,"Legume proaspete, pepeni şi căpşuni - în grădină destinate comercializării:\n- varza, conopidă, broccoli,\n- legume pentru frunze (praz, salată, spanac etc.), \n- tomate,\n- porumb dulce,\n- legume cultivate pentru fructe: vinete, ardei, dovleci şi dovlecei, castraveciori,\n- legume cultivate pentru rădăcină, bulbi, tuberculi (excepţie cartofi) - morcovi, păstârnac, ceapă, usturoi, napi,\n- legume păstăi: fasole, mazăre, cu excepţia lintei şi a năutului,\n- fructele plantelor neperene: căpşuni, pepeni galbeni, pepeni verzi, ananas.",null,null,null,null,null,null,null,null,null,null,null,null,null,null,null,null,null,null,null,null,null,null,null,null,null,null,null,null,null,null,null,7176.16,null,null,null,null,null,null,null,null,null,{"$f":"AF432*AP432","v":0}]
["B_1_7_2",null,null,null,null,null,null,null,null,"Legume proaspete, pepeni şi căpşuni - în sere și solarii:\n- varza, conopidă, broccoli,\n- legume pentru frunze (praz, salată, spanac etc.), \n- tomate,\n- porumb dulce,\n- legume cultivate pentru fructe: vinete, ardei, dovleci şi dovlecei, castraveciori,\n- legume cultivate pentru rădăcină, bulbi, tuberculi (excepţie cartofi): morcovi, păstârnac,ceapă, usturoi, napi,\n- legume păstăi: fasole, mazăre, cu excepţia lintei şi a năutului,\n- fructele plantelor neperene: căpşuni, pepeni galbeni, pepeni verzi, ananas.",null,null,null,null,null,null,null,null,null,null,null,null,null,null,null,null,null,null,null,null,null,null,null,null,null,null,null,null,null,null,null,27507.66,null,null,null,null,null,null,null,null,null,{"$f":"AF433*AP433","v":0}]
["B_1_8_1",null,null,null,null,null,null,null,null,"Flori în câmp:\n- bulbi de flori, cormi, tuberculi,\n- flori tăiate şi boboci,\n- plante cu flori şi plante ornamentale ",null,null,null,null,null,null,null,null,null,null,null,null,null,null,null,null,null,null,null,null,null,null,null,null,null,null,null,null,null,null,null,25527.46,null,null,null,null,null,null,null,null,null,{"$f":"AF434*AP434","v":0}]
["B_1_8_2",null,null,null,null,null,null,null,null,"Flori - în sere și solarii:\n- bulbi de flori, cormi, tuberculi,\n- flori tăiate şi boboci,\n- plante cu flori şi plante ornamentale",null,null,null,null,null,null,null,null,null,null,null,null,null,null,null,null,null,null,null,null,null,null,null,null,null,null,null,null,null,null,null,83743.81,null,null,null,null,null,null,null,null,null,{"$f":"AF435*AP435","v":0}]
["B_1_9_1",null,null,null,null,null,null,null,null,"Plante de nutreț - Iarba temporară: iarba semănată pe terenuri arabile cedate producţiilor furajere erbacee pe o perioadă mai scurtă de 5 ani şi chiar sub un an",null,null,null,null,null,null,null,null,null,null,null,null,null,null,null,null,null,null,null,null,null,null,null,null,null,null,null,null,null,null,null,266.22000000000003,null,null,null,null,null,null,null,null,null,{"$f":"AF436*AP436","v":0}]
["B_1_9_2_1",null,null,null,null,null,null,null,null,"Plante de nutreț - alte furaje verzi - Porumb siloz",null,null,null,null,null,null,null,null,null,null,null,null,null,null,null,null,null,null,null,null,null,null,null,null,null,null,null,null,null,null,null,1029.19,null,null,null,null,null,null,null,null,null,{"$f":"AF437*AP437","v":0}]
["B_1_9_2_2",null,null,null,null,null,null,null,null,"PPlante de nutreţ – alte furaje verzi (culturi anuale de cereale recoltate verzi, sorgul anual, anumite graminee anuale cum sunt firuţa, cruciferele, facelia dacă sunt recoltate verzi şi nu au fost menţionate în altă parte, măzăriche, lupin dulce)",null,null,null,null,null,null,null,null,null,null,null,null,null,null,null,null,null,null,null,null,null,null,null,null,null,null,null,null,null,null,null,476.13,476.13,476.13,476.13,476.13,476.13,476.13,476.13,476.13,476.13,{"$f":"AF438*AP438","v":0}]
["B_1_9_2_99",null,null,null,null,null,null,null,null,"Alte plante de nutreţ(diferite specii de trifoi anual sau peren-trifoi alb, trifoi roşu, trifoi de Alexandria - diferite varietăţi de lucernă ,)",null,null,null,null,null,null,null,null,null,null,null,null,null,null,null,null,null,null,null,null,null,null,null,null,null,null,null,null,null,null,null,662.78,null,null,null,null,null,null,null,null,null,{"$f":"AF439*AP439","v":0}]
["B_1_10",null,null,null,null,null,null,null,null,"Seminţe şi seminceri:\n- semințe de graminee,\n- seminţe pentru horticultură,\n- seminţe şi răsaduri pentru teren arabil cu excepţia cerealelor, a boabelor de leguminoase uscate, a cartofilor, a plantelor oleaginoase.",null,null,null,null,null,null,null,null,null,null,null,null,null,null,null,null,null,null,null,null,null,null,null,null,null,null,null,null,null,null,null,2993.73,null,null,null,null,null,null,null,null,null,{"$f":"AF440*AP440","v":0}]
["B_11",null,null,null,null,null,null,null,null,"Alte plante: culturi de mică importanţă economică care nu pot fi încadrate în altă categorie",null,null,null,null,null,null,null,null,null,null,null,null,null,null,null,null,null,null,null,null,null,null,null,null,null,null,null,null,null,null,null,592.99,null,null,null,null,null,null,null,null,null,{"$f":"AF441*AP441","v":0}]
["B_3_1",null,null,null,null,null,null,null,null,"Păşuni și fânețe permanente - pășuni și fânețe",null,null,null,null,null,null,null,null,null,null,null,null,null,null,null,null,null,null,null,null,null,null,null,null,null,null,null,null,null,null,null,295.04000000000002,476.13,476.13,476.13,476.13,476.13,476.13,476.13,476.13,476.13,{"$f":"AF442*AP442","v":0}]
["B_3_2",null,null,null,null,null,null,null,null,"Păşuni și fânețe permanente - pe terenuri accidentate - păşuni sărace, inclusiv lăstărişul, de obicei nefertilizate şi neîntrebuinţate:\n– păşuni cu randament scăzut situate în locuri accidentate şi la altitudini mari, care nu sunt cosite;\n – terenuri stâncoase, terenuri mlăştinoase, bărăganuri",null,null,null,null,null,null,null,null,null,null,null,null,null,null,null,null,null,null,null,null,null,null,null,null,null,null,null,null,null,null,null,92.33,662.78,662.78,662.78,662.78,662.78,662.78,662.78,662.78,662.78,{"$f":"AF443*AP443","v":0}]
["B_4_1_1_1",null,null,null,null,null,null,null,null,"Fructe, pomi și arbuști - climă temperată:\n- mere, \n- pere\n- piersici și nectarine,\n- Alte fructe: prune, caise, cireşe, vişine, gutui.",null,null,null,null,null,null,null,null,null,null,null,null,null,null,null,null,null,null,null,null,null,null,null,null,null,null,null,null,null,null,null,2812.04,null,null,null,null,null,null,null,null,null,{"$f":"AF444*AP444","v":0}]
["B_4_1_2",null,null,null,null,null,null,null,null,"Livezi de coacăz, smochin, zmeur, muri,agrişe, cătină, afin, goji",null,null,null,null,null,null,null,null,null,null,null,null,null,null,null,null,null,null,null,null,null,null,null,null,null,null,null,null,null,null,null,3958.34,null,null,null,null,null,null,null,null,null,{"$f":"AF445*AP445","v":0}]
["B_4_1_3",null,null,null,null,null,null,null,null,"Fructe, pomi şi arbuşti – nuci, alune",null,null,null,null,null,null,null,null,null,null,null,null,null,null,null,null,null,null,null,null,null,null,null,null,null,null,null,null,null,null,null,1754.4,null,null,null,null,null,null,null,null,null,{"$f":"AF446*AP446","v":0}]
["B_4_4_1",null,null,null,null,null,null,null,null,"Vii - vin nobil",null,null,null,null,null,null,null,null,null,null,null,null,null,null,null,null,null,null,null,null,null,null,null,null,null,null,null,null,null,null,null,1981.83,null,null,null,null,null,null,null,null,null,{"$f":"AF447*AP447","v":0}]
["B_4_4_2",null,null,null,null,null,null,null,null,"Vii - alte vinuri",null,null,null,null,null,null,null,null,null,null,null,null,null,null,null,null,null,null,null,null,null,null,null,null,null,null,null,null,null,null,null,1889.96,null,null,null,null,null,null,null,null,null,{"$f":"AF448*AP448","v":0}]
["B_4_4_3",null,null,null,null,null,null,null,null,"Vii – struguri de masă",null,null,null,null,null,null,null,null,null,null,null,null,null,null,null,null,null,null,null,null,null,null,null,null,null,null,null,null,null,null,null,2170.52,null,null,null,null,null,null,null,null,null,{"$f":"AF449*AP449","v":0}]
["B_4_5",null,null,null,null,null,null,null,null,"Pepiniere",null,null,null,null,null,null,null,null,null,null,null,null,null,null,null,null,null,null,null,null,null,null,null,null,null,null,null,null,null,null,null,5614.25,null,null,null,null,null,null,null,null,null,{"$f":"AF450*AP450","v":0}]
["B_4_6",null,null,null,null,null,null,null,null,"Alte culturi  permanente: răchita, papura, bambus, salcie, brazi de crăciun",null,null,null,null,null,null,null,null,null,null,null,null,null,null,null,null,null,null,null,null,null,null,null,null,null,null,null,null,null,null,null,487.35,null,null,null,null,null,null,null,null,null,{"$f":"AF451*AP451","v":0}]
["B_6_1",null,null,null,null,null,null,null,null,"Ciupercării pe 100mp (Nr. recolte pe an - 4)\n(suprafața totală cultivată = suprafața de bază*numărul de cicluri)",null,null,null,null,null,null,null,null,null,null,null,null,null,null,null,null,null,null,null,null,null,{"$f":"P453*Z453/100","v":0},null,null,null,null,null,null,null,null,null,4456.78,null,null,null,null,null,null,null,null,null,{"$f":"AF452*AP452/4","v":0}]
[null,null,null,null,null,null,null,null,null,"Nr. cicluri conform Plan afaceri *",null,null,null,null,null,null,null,null,null,null,"Suprafata de bază (stelaje) (mp) **"]
[null,null,null,null,null,null,null,null,null,"TOTAL VEGETAL",null,null,null,null,null,null,null,null,null,null,null,null,null,null,null,null,null,null,null,null,null,null,null,null,null,null,null,null,null,null,null,null,null,null,null,null,null,null,null,null,null,{"$f":"SUM(AZ407:BJ453)","v":0}]
[]
["*  Se va completa cu numărul de cicluri prevăzut a se realiza în cadrul unui an, conform planului de afaceri\n** Se va completa cu suprafața culturii(mp) cu ciuperci; în cazul în care în cadrul ciupercăriei se utilizează un sistem de cultură în stelaje, se va completa suprafața culturii formată din suprafața unui stelaj(mp) X număr de stelaje "]
["Coduri EUROSTAT",null,null,null,null,null,null,null,null,"Denumire specii animale",null,null,null,null,null,null,null,null,null,null,null,null,null,null,null,null,null,null,null,null,null,"Număr\ncapete",null,null,null,null,null,null,null,null,null,"SO 2013           euro/cap",null,null,null,null,null,null,null,null,null,"SO"]
[0,null,null,null,null,null,null,null,null,1,null,null,null,null,null,null,null,null,null,null,null,null,null,null,null,null,null,null,null,null,null,2,null,null,null,null,null,null,null,null,null,3,null,null,null,null,null,null,null,null,null,4]
["C_1",null,null,null,null,null,null,null,null,"Ecvidee3)",null,null,null,null,null,null,null,null,null,null,null,null,null,null,null,null,null,null,null,null,null,null,null,null,null,null,null,null,null,null,null,1404.31,null,null,null,null,null,null,null,null,null,{"$f":"AF459*AP459","v":0}]
["C_2_1",null,null,null,null,null,null,null,null,"Bovine sub 1 an - total 2)4)",null,null,null,null,null,null,null,null,null,null,null,null,null,null,null,null,null,null,null,null,null,null,null,null,null,null,null,null,null,null,null,216.38,null,null,null,null,null,null,null,null,null,0]
["C_2_2",null,null,null,null,null,null,null,null,"Bovine sub 2 ani - masculi 2)4)",null,null,null,null,null,null,null,null,null,null,null,null,null,null,null,null,null,null,null,null,null,null,null,null,null,null,null,null,null,null,null,344.4,null,null,null,null,null,null,null,null,null,0]
["C_2_3",null,null,null,null,null,null,null,null,"Bovine sub 2 ani - femele 2)4)",null,null,null,null,null,null,null,null,null,null,null,null,null,null,null,null,null,null,null,null,null,null,null,null,null,null,null,null,null,null,null,341.49,null,null,null,null,null,null,null,null,null,0]
["C_2_4",null,null,null,null,null,null,null,null,"Bovine de 2 ani şi peste - masculi 2)4)",null,null,null,null,null,null,null,null,null,null,null,null,null,null,null,null,null,null,null,null,null,null,null,null,null,null,null,null,null,null,null,817.88,null,null,null,null,null,null,null,null,null,0]
["C_2_5",null,null,null,null,null,null,null,null,"Bovine de 2 ani si peste -femele (juninci pentru îngrăşat, juninci pentru reproducţie) 2)4)",null,null,null,null,null,null,null,null,null,null,null,null,null,null,null,null,null,null,null,null,null,null,null,null,null,null,null,null,null,null,null,801.38,null,null,null,null,null,null,null,null,null,0]
["C_2_6",null,null,null,null,null,null,null,null,"Vaci, bivoliţe  pentru lapte 2)4)",null,null,null,null,null,null,null,null,null,null,null,null,null,null,null,null,null,null,null,null,null,null,null,null,null,null,null,null,null,null,null,1200.46,null,null,null,null,null,null,null,null,null,0]
["C_2_99",null,null,null,null,null,null,null,null,"Bovine de 2 ani şi peste - alte vaci 2)4)",null,null,null,null,null,null,null,null,null,null,null,null,null,null,null,null,null,null,null,null,null,null,null,null,null,null,null,null,null,null,null,515.85,null,null,null,null,null,null,null,null,null,0]
["C_3_1_1",null,null,null,null,null,null,null,null,"Oi5)\n - mioare montate\n - oi de un an sau mai mult destinate reproducerii, oile reformate care urmează să fete ",null,null,null,null,null,null,null,null,null,null,null,null,null,null,null,null,null,null,null,null,null,null,null,null,null,null,null,null,null,null,null,54.91,null,null,null,null,null,null,null,null,null,0]
["C_3_1_99",null,null,null,null,null,null,null,null,"Oi- alte oi5) \n-miei, berbeci, oi reformate \n-oi sterpe care urmează a fi îngrăşate în vederea sacrificării ",null,null,null,null,null,null,null,null,null,null,null,null,null,null,null,null,null,null,null,null,null,null,null,null,null,null,null,null,null,null,null,26.72,null,null,null,null,null,null,null,null,null,0]
["C_3_2_1",null,null,null,null,null,null,null,null,"Capre - capre montate\n- capre montate femele destinate reproducerii, capre reformate care urmează să fete 5)",null,null,null,null,null,null,null,null,null,null,null,null,null,null,null,null,null,null,null,null,null,null,null,null,null,null,null,null,null,null,null,112.98,null,null,null,null,null,null,null,null,null,0]
["C_3_2_99",null,null,null,null,null,null,null,null,"Capre – alte capre \n-iezi, ţapi, capre reformate destinate sacrificării 5)",null,null,null,null,null,null,null,null,null,null,null,null,null,null,null,null,null,null,null,null,null,null,null,null,null,null,null,null,null,null,null,39.67,null,null,null,null,null,null,null,null,null,0]
["C_4_1_1",null,null,null,null,null,null,null,null,"Porcine - tineret porcin sub 20 kg 6)",null,null,null,null,null,null,null,null,null,null,null,null,null,null,null,null,null,null,null,null,null,null,null,null,null,null,null,null,null,null,null,33.36,null,null,null,null,null,null,null,null,null,0]
["C_4_1_2",null,null,null,null,null,null,null,null,"Porcine - scroafe pentru reproducţie peste 50 kg 6)",null,null,null,null,null,null,null,null,null,null,null,null,null,null,null,null,null,null,null,null,null,null,null,null,null,null,null,null,null,null,null,262.55,null,null,null,null,null,null,null,null,null,0]
["C_4_1_99",null,null,null,null,null,null,null,null,"Porcine - alte porcine \n-porci la îngrășat, vieri, scroafe destinate sacrificării6)",null,null,null,null,null,null,null,null,null,null,null,null,null,null,null,null,null,null,null,null,null,null,null,null,null,null,null,null,null,null,null,388.08,null,null,null,null,null,null,null,null,null,0]
["C_5_1",null,null,null,null,null,null,null,null,"Pui pentru carne 1)",null,null,null,null,null,null,null,null,null,null,null,null,null,null,null,null,null,null,null,null,null,null,null,null,null,null,null,null,null,null,null,473.59,null,null,null,null,null,null,null,null,null,0]
["C_5_2",null,null,null,null,null,null,null,null,"Găini ouătoare 1)",null,null,null,null,null,null,null,null,null,null,null,null,null,null,null,null,null,null,null,null,null,null,null,null,null,null,null,null,null,null,null,2156,null,null,null,null,null,null,null,null,null,0]
["C_5_3_1",null,null,null,null,null,null,null,null,"Curcani şi curci 1)",null,null,null,null,null,null,null,null,null,null,null,null,null,null,null,null,null,null,null,null,null,null,null,null,null,null,null,null,null,null,null,4205.5600000000004,null,null,null,null,null,null,null,null,null,0]
["C_5_3_2",null,null,null,null,null,null,null,null,"Raţe 1)",null,null,null,null,null,null,null,null,null,null,null,null,null,null,null,null,null,null,null,null,null,null,null,null,null,null,null,null,null,null,null,2824.99,null,null,null,null,null,null,null,null,null,0]
["C_5_3_3",null,null,null,null,null,null,null,null,"Gâşte 1)",null,null,null,null,null,null,null,null,null,null,null,null,null,null,null,null,null,null,null,null,null,null,null,null,null,null,null,null,null,null,null,3602.66,null,null,null,null,null,null,null,null,null,0]
["C_5_3_4",null,null,null,null,null,null,null,null,"Struţi 1)",null,null,null,null,null,null,null,null,null,null,null,null,null,null,null,null,null,null,null,null,null,null,null,null,null,null,null,null,null,null,null,30083.5,null,null,null,null,null,null,null,null,null,0]
["C_5_3_99",null,null,null,null,null,null,null,null,"Alte păsări: bibilici, porumbei, potârnichi, fazani, prepeliţe 1)",null,null,null,null,null,null,null,null,null,null,null,null,null,null,null,null,null,null,null,null,null,null,null,null,null,null,null,null,null,null,null,900.34,null,null,null,null,null,null,null,null,null,0]
["C_6",null,null,null,null,null,null,null,null,"Iepuri (femele iepuri)",null,null,null,null,null,null,null,null,null,null,null,null,null,null,null,null,null,null,null,null,null,null,null,null,null,null,null,null,null,null,null,13.91,null,null,null,null,null,null,null,null,null,0]
["C_7",null,null,null,null,null,null,null,null,"Familii de albine 7)",null,null,null,null,null,null,null,null,null,null,null,null,null,null,null,null,null,null,null,null,null,null,null,null,null,null,null,null,null,null,null,59.62,null,null,null,null,null,null,null,null,null,0]
[null,null,null,null,null,null,null,null,null,"TOTAL zootehnic",null,null,null,null,null,null,null,null,null,null,null,null,null,null,null,null,null,null,null,null,null,null,null,null,null,null,null,null,null,null,null,null,null,null,null,null,null,null,null,null,null,{"$f":"SUM(AZ459:BL482)","v":0}]
[null,null,null,null,null,null,null,null,null,"TOTAL GENERAL",null,null,null,null,null,null,null,null,null,null,null,null,null,null,null,null,null,null,null,null,null,null,null,null,null,null,null,null,null,null,null,null,null,null,null,null,null,null,null,null,null,{"$f":"AZ454+AZ483","v":0}]
[]
["Valoare sprijin:*",null,null,null,null,null,null,null,null,null,{"$f":" IF(AND((AZ484>=4000), (AZ484<=7999)),\"15.000,00 EURO\",\"neeligibil\")","v":"neeligibil"}]
[]
["Curs EURO la data întocmirii Planului de Afaceri:",null,null,null,null,null,null,null,null,null,null,null,null,null,null,null,null,null,null,null,null,null,null,null,null,null,null,null,null,null,null,null,null,null,"Data întocmire Plan de Afaceri:"]
[]
["1) Valoarea SO se referă la 100 capete \nExploatația de păsări care își desfășoară activitate pe mai multe cicluri de producție într-un an contabil se va dimensiona la depunerea cererii de finanțare cu efectivul de păsări existent.\n 2) Categoriile de bovine includ și categoriile corespunzătoare de bivoli și bivolițe\n 3) Cabalinele luate in calcul nu sunt destinate consumului uman, ci deservesc munca în exploataţie   \n 4)În cazul exploataţiilor de creștere a bovinelor:\nBovinele pentru carne sunt cele destinate sacrificării: bovine sub un an, bovine sub 2 ani (femele și masculi), bovine de doi ani și peste (femele și masculi), alte bovine (tauri, boi, alte bovine reformate destinate sacrificării).\nBovinele sub un an se iau în calculul dimensiunii economice, astfel:\n-dacă în cadrul exploatației se găsesc vaci de lapte, atunci calculul dimensiunii economice se face prin însumarea producților standard pentru vaci de lapte și a producțiilor standard pentru vițeii sub un an al căror număr depășește numărul vacilor de lapte\n-dacă în cadrul exploatației nu se găsesc vaci de lapte, atunci calculul dimensiunii economice se face prin însumarea producțiilor standard pentru vițeii sub un an al căror număr există la acel moment în cadrul exploatației\n 5)În cazul exploataţiilor de creștere a ovinelor / caprinelor:\nNumărul de miei/iezi se ia în calculul dimensiunii economice numai dacă în cadrul exploatației nu sunt oi, respectiv capre pentru reproducție  . \n 6) În cazul exploataţiilor de creștere a porcinelor:\nNumărul de porcine sub 20 kg se ia în calculul dimensiunii economice numai dacă în cadrul exploatației nu sunt scroafe de reproducție.\n 7)Valoarea SO este calculată pe stup.\n 8)Legislația care a stat la baza stabilirii coeficienților de calcul se regăsește la capitolul Legislația europeană și națională aplicabilă din Ghidul solicitantului aferent măsurii M1/2A"]
[]
[]
[]
[]
[]
[]
[]
[]
[]
["F. DECLARAŢIE PE PROPRIA RĂSPUNDERE A SOLICITANTULUI"]
["Prin această declaraţie solicitantul"]
[]
["cunoscând prevederile Codului Penal privind la falsul în declaraţii, care solicită asistenţă financiară nerambursabilă prin Programul FEADR pentru proiectul din cadrul măsurii M1/2A, intitulat"]
[]
[]
[]
[]
[null,null,null,"1. Declar pe propria răspundere că îndeplinesc condiţiile de eligibilitate privind acordarea sprijinului prevăzut în Fişa Măsurii M1/2A şi mă angajez să le respect pe o perioadă egală cu perioada de implementare şi monitorizare a proiectelor începând cu anul depunerii cererii de finanţare."]
[null,null,null,"2. Declar pe propria răspundere că toate informaţiile din Cererea de Finanţare şi din documentele anexate acesteia sunt corecte şi mă angajez să respect condiţiile cerute în reglementările referitoare la prezentul program şi pe cele legate de proiectul anexat şi să furnizez periodic, la cerere, documente justificative necesare."]
[null,null,null,"3. Declar pe propria răspundere că orice modificări aduse dreptului de proprietate sau de folosinţă vor fi notificate  AFIR  în termen de trei zile calendaristice de la data încheierii documentelor respective. "]
[null,null,null,"4. Declar pe propria răspundere că mă angajez ca pe perioada de executie a Deciziei de finanţare,  nu voi reduce dimensiunea economică prevăzută la depunerea cererii de finanțare a exploatației agricole pe durata de execuție a proiectului cu mai mult de 15% (prin excepție, în cazul pepinierelor, marja de fluctuație de  maximum 15% a dimensiunii economice poate fi mai mare). Mă angajez ca dimensiunea economică a exploatației agricole nu va scădea, în nici o situație, sub pragul minim de 4.000 SO stabilit prin condițiile de eligibilitate."]
[null,null,null,"5. Declar că nu sunt într-unul din următoarele cazuri:"]
[null,null,null,"a. Acuzat din cauza unei greseli privind conduită profesională având ca soluţie finală res judicata (împotriva căreia niciun apel nu este posibil)."]
[null,null,null,"b. Vinovat de grave deficienţe de conduită profesională dovedite prin orice mijloace pe care Agenţia le poate justifica. "]
[null,null,null,"c. Vinovat de faptul că nu am prezentat informaţiile cerute de Autoritatea Contractantă ca o condiţie de participare la contractare."]
[null,null,null,"d. Nerespectarea prevederilor contractuale prin care nu mi-am îndeplinit obligaţiile contractuale în legatură cu un alt Contract/ Decizie de Finanţare încheiat cu AFIR sau alte contracte finanţate din fonduri europene."]
[null,null,null,"e. Încalcarea de a obţine informaţii confidenţiale sau de influenţare a AFIR în timpul procesului de evaluare a proiectului şi nu voi face presiuni la adresa evaluatorului."]
[null,null,null,"6. Declar pe propria răspundere că mă angajez că toate obiectivele prevăzute în Planul de Afaceri să fie realizate cu respectarea prevederilor legislatiei naţionale şi europene în vigoare şi după caz, să obţin autorizaţiile necesare implementării proiectului până la verificarea îndeplinirii Planului de Afaceri la tranşa a doua de plată."]
[null,null,null,"7. Declar pe propria răspundere că mă angajez că voi respecta pe toată perioadă de valabilitate a Deciziei de Finanţare  condiţiile de implementare, iar dacă se constată că nu mai sunt indeplinite obiectivele din Planul de Afaceri, Autoritatea Contractanta poate proceda, după caz, fie la recuperarea integrală a ajutorului financiar nerambursabil plătit şi la încetarea de drept a Deciziei de finantare, fie la recuperarea parţială, respectiv proporţional cu obiectivele nerealizate din Planul de afaceri afectate de neregulă."]
[null,null,null,"8. Declar pe propria răspundere că  niciun alt membru al familiei nu a obtinut sprijin pentru aceeasi exploatatie agricola (gospodarie familiala)."]
[null,null,null,"9. Declar pe propria răspundere că mă angajez ca inaintea solicitarii celei de-a doua transe de plata, voi face dovada cresterii dimensiunii economice a exploatatiei cu minimum 20 % fata de dimensiunea economica initiala a exploatatiei."]
[null,null,null,"10. Declar pe propria răspundere că implementarea planului de afaceri va incepe in termen de cel mult 9 luni de la data deciziei de acordare a sprijinului.  "]
[null,null,null,"11. Declar pe propria răspundere că nu am înscrisuri care privesc sancțiuni economico-financiare în cazierul judiciar pe care mă oblig să îl depun la încheierea contractului de finanţare . Prin prezenta îmi exprim consimțământul ca AFIR să solicite instituțiilor abilitate conform legii, extrasul de pe cazierul judiciar privind situația mea.\n(Până la reglementarea posibilităţii aplicării de către experţii evaluatori AFIR a normelor metodologice aferente Legii nr. 290/2004 privind cazierul judiciar, cu modificările şi completările ulterioare, solicitantul are obligaţia depunerii documentului justificativ mai sus enunţat.)  "]
[null,null,null,"12.  Declar pe propria răspunderii că în cazul în care, exploataţia zootehnică pe care o deţin va fi selectată şi primeşte sprijin financiar nerambursabil, să o înregistrez la ANSVSA, ca exploataţie comercială de tip A, până la data semnării Deciziei de Finanţare."]
[null,null,null,"13. Sunt de acord ca AFIR să consulte şi să prelucreze, prin operaţiunile prevăzute de legislaţia în vigoare în vederea desfăşurării activităţii specifice, datele mele cu caracter personal, furnizate AFIR. "]
[]
["Semnătura reprezentant legal ",null,null,null,null,null,null,null,null,null,null,null,null,null,null,null,null,null,null,null,null,null,null,null,null,null,null,null,null,null,null,null,null,null,null,null,null,null,null,null,null,null,null,null," Data:"]
[]
[]
[]
["Anexa INDICATORI DE MONITORIZARE"]
["Masura M1/2A “DEZVOLTARE AGRO FERME ”"]
[]
["1. Cod CAEN"]
["2. Tipul beneficiarului",null,null,null,null,null,null,null,null,null,null,null,null,null,null,null,null,"Solicitanți înființați în baza OUG 44/ 2008",null,null,null,null,null,null,null,null,null,null,null,null,null,"Bărbaţi",null,null,null,null,null,null,null,null,null,null,null,null,"< 40"]
[null,null,null,null,null,null,null,null,null,null,null,null,null,null,null,null,null,null,null,null,null,null,null,null,null,null,null,null,null,null,null,null,null,null,null,null,null,null,null,null,null,null,null,null,">= 40"]
[null,null,null,null,null,null,null,null,null,null,null,null,null,null,null,null,null,null,null,null,null,null,null,null,null,null,null,null,null,null,null,"Femei",null,null,null,null,null,null,null,null,null,null,null,null,"< 40"]
[null,null,null,null,null,null,null,null,null,null,null,null,null,null,null,null,null,null,null,null,null,null,null,null,null,null,null,null,null,null,null,null,null,null,null,null,null,null,null,null,null,null,null,null,">= 40"]
[null,null,null,null,null,null,null,null,null,null,null,null,null,null,null,null,null,"Persoană juridică"]
["3. Tipul de zonă",null,null,null,null,null,null,null,null,null,null,null,null,null,null,null,null,"Zonă normală"]
[null,null,null,null,null,null,null,null,null,null,null,null,null,null,null,null,null,"Zonă montană"]
[null,null,null,null,null,null,null,null,null,null,null,null,null,null,null,null,null,"Zonă constrângeri specifice"]
[null,null,null,null,null,null,null,null,null,null,null,null,null,null,null,null,null,"Zonă constrângeri semnificative"]
["4. Tipul producţiei",null,null,null,null,null,null,null,null,null,null,null,null,null,null,null,null,"Ecologică"]
[null,null,null,null,null,null,null,null,null,null,null,null,null,null,null,null,null,"Convenţională"]
["5. Suprafaţa exploataţiei agricole sprijinite (Ha)"]
["6. Dimensiunea economică a exploataţiei(intre 4.000 și 7.999 Euro - valoare Producţie Standard)"]
[null,null,null,null,null,null,null,null,null,null,null,null,null,null,null,null,null,"Culturi de câmp"]
[null,null,null,null,null,null,null,null,null,null,null,null,null,null,null,null,null,"Horticultură"]
[null,null,null,null,null,null,null,null,null,null,null,null,null,null,null,null,null,"Viticultură"]
[null,null,null,null,null,null,null,null,null,null,null,null,null,null,null,null,null,"Culturi permanente (altele decât viticultura)"]
["7. Tip ramură agricolă",null,null,null,null,null,null,null,null,null,null,null,null,null,null,null,null,"Creștere bovine pentru carne"]
[null,null,null,null,null,null,null,null,null,null,null,null,null,null,null,null,null,"Creștere bovine pentru lapte"]
[null,null,null,null,null,null,null,null,null,null,null,null,null,null,null,null,null,"Creștere ovine și caprine"]
[null,null,null,null,null,null,null,null,null,null,null,null,null,null,null,null,null,"Porcine"]
[null,null,null,null,null,null,null,null,null,null,null,null,null,null,null,null,null,"Păsări de curte"]
[null,null,null,null,null,null,null,null,null,null,null,null,null,null,null,null,null,"Mixte - culturi mixte"]
[null,null,null,null,null,null,null,null,null,null,null,null,null,null,null,null,null,"Mixte - animale mixte"]
[null,null,null,null,null,null,null,null,null,null,null,null,null,null,null,null,null,"Mixte - culturi și animale cu excepția albinelor"]
[null,null,null,null,null,null,null,null,null,null,null,null,null,null,null,null,null,"Albine"]
[null,null,null,null,null,null,null,null,null,null,null,null,null,null,null,null,null,"Altele"]
["8. Contribuie la Prioritatea 1",null,null,null,null,null,null,null,null,null,null,null,null,null,null,null,null,"M01 - Transfer de cunoştinţe şi acţiuni de informare"]
[null,null,null,null,null,null,null,null,null,null,null,null,null,null,null,null,null,"M02 - Servicii de consiliere"]
[null,null,null,null,null,null,null,null,null,null,null,null,null,null,null,null,null,"M16 - Cooperare"]
["9. Număr locuri de muncă nou create",null,null,null,null,null,null,null,null,null,null,null,null,null,null,null,null,"Femei"]
[null,null,null,null,null,null,null,null,null,null,null,null,null,null,null,null,null,"Barbati"]
["10. Proiectul include teme de mediu/inovare",null,null,null,null,null,null,null,null,null,null,null,null,null,null,null,null,null,null,null,null,null,null,null,null,null,null,null,null,null,null,null,null,null,null,null,null,null,null,null,null,null,null,null,null,null,null,null,null,null,null,null,"DA",null,null,null,null,"NU"]
["11. Solicitantul este/ se angajeaza ca va deveni membru al unei forme asociative",null,null,null,null,null,null,null,null,null,null,null,null,null,null,null,null,null,null,null,null,null,null,null,null,null,null,null,null,null,null,null,null,null,null,null,null,null,null,null,null,null,null,null,null,null,null,null,null,null,null,null,"DA",null,null,null,null,"NU"]
["12. Total cheltuială publică realizată "]
["Indic. nr. 1 - reprezintă codul CAEN pentru investiţia vizată prin proiect\nIndic. nr. 2, 3, 4, 7 - se va bifa doar o singură categorie/ categoria majoritară\nIndic. nr. 5 - se completează suprafaţa (Ha) exploataţiei agricole sprijinite prin proiect\nIndic. nr. 6 - se va completa dimensiunea economică a exploatatiei\nIndic. nr. 8 - se va completa din momentul demarării M01, M02, respectiv M16, cu bifa în dreptul măsurii corespunzătoare, dacă va fi cazul Indic. nr. 9 - se va completa numărul locurilor de muncă nou create prin proiect                                                                                                                 Indic. nr. 10 - se va bifa o singura categorie, DA sau NU.                                                                                                                                                              Indic. nr. 11 - se va bifa o singura categorie, DA sau NU.                                                                                                                                                             Indic. nr. 12- se va  completa cu valoarea sprijinului forfetar solicitat in cadrul proiectului (15.000 Euro)     "]
[]
[null,"REGULI DE COMPLETARE"]
[null,"Trebuie bifate şi anexate toate documentele de pe coloana “DEPUNERE - Obligatoriu pentru toate proiectele” din secţiunea D  - Lista documentelor anexate.\n \nSe vor completa celulele albe din tabelul privind stabilirea categoriei de ferma cu suprafetele/numărul de capete aferent culturii/speciei, iar calculul valorii producţiei standard (SO) se va efectua automat.\n \nSe va completa Declaraţia pe propria raspundere a solicitantului cu datele solicitate (denumire/nume prenume solicitant,  titlul proiectului). \n \nCâmpurile Nivel de studii şi denumirea instituţiei care a emis documentul se va completa cu: competentele şi aptitudinile profesionale îndeplinite. \n \nPentru indicatorii de tip numeric care nu fac obiectul investitiei se va completa valoarea zero."]

{"sheet":"A8-Detalii privind terenul ","index":1,"n_rows":22,"n_cols":44,"rows_kept":22,"cut":false,"hidden":false,"merged":[[13,2,13,58],[14,1,14,14],[14,16,14,34],[14,36,14,58],[15,1,15,14],[15,16,15,34],[15,36,15,58],[22,1,22,24],[22,43,22,58],[17,3,17,14],[17,16,17,21],[17,23,17,29],[17,32,17,40],[18,3,18,14],[18,16,18,21],[18,23,18,29],[22,26,22,41],[8,1,8,58],[9,1,9,24],[9,26,9,41],[9,43,9,58],[10,1,10,24],[10,26,10,41],[10,43,10,58],[7,3,7,49],[4,1,4,14],[5,3,5,14],[5,16,5,21],[5,23,5,29],[5,32,5,40],[5,43,5,50],[6,3,6,14],[6,16,6,21],[6,23,6,29],[6,32,6,40],[6,43,6,50],[1,2,1,58],[2,1,2,14],[2,16,2,34],[2,36,2,58],[3,1,3,14],[3,16,3,34],[3,36,3,58],[16,1,16,14],[20,1,20,58],[21,1,21,24],[21,26,21,41],[21,43,21,58],[17,43,17,50],[18,32,18,40],[18,43,18,50],[19,3,19,49]]}
[]
[null,null,"A8 DETALII PRIVIND TERENUL EXPLOATAŢIEI CARE STĂ LA BAZA CALCULULUI SO:"]
[null,"Judeţ",null,null,null,null,null,null,null,null,null,null,null,null,null,null,"Comună",null,null,null,null,null,null,null,null,null,null,null,null,null,null,null,null,null,null,null,"Sat"]
[]
[null,"Modalităţi deţinere"]
[null,null,null,"Moştenire / Donaţie",null,null,null,null,null,null,null,null,null,null,null,null,null,null,null,null,null,null,null,"Blocul fizic",null,null,null,null,null,null,null," ","Parcela",null,null,null,null,null,null,null,null,null,null,"Tarlaua"]
[null,null,null,"Achiziţie"]
[null,null,null,"Arendă / Concesiune/ Comodat / Închiriere/ Dare temporă în administrare sau folosinţă"]
[null,"Persoana care a dat moştenirea/donaţia/vânzător/arendator/concedent/comodant/locator / Persoana care a dat temporar în administrare sau folosință"]
[null,"Nume si prenume / Denumire",null,null,null,null,null,null,null,null,null,null,null,null,null,null,null,null,null,null,null,null,null,null,null,null,"Cod unic înregistrare/Cod numeric personal",null,null,null,null,null,null,null,null,null,null,null,null,null,null,null,null,"Act identitate (serie/număr) cetăţeni străini"]
[]
[]
[]
[null,null,"A8 DETALII PRIVIND TERENUL EXPLOATAŢIEI CARE STĂ LA BAZA CALCULULUI SO:"]
[null,"Judeţ",null,null,null,null,null,null,null,null,null,null,null,null,null,null,"Comună",null,null,null,null,null,null,null,null,null,null,null,null,null,null,null,null,null,null,null,"Sat"]
[]
[null,"Modalităţi deţinere"]
[null,null,null,"Moştenire / Donaţie",null,null,null,null,null,null,null,null,null,null,null,null,null,null,null,null,null,null,null,"Blocul fizic",null,null,null,null,null,null,null," ","Parcela",null,null,null,null,null,null,null,null,null,null,"Tarlaua"]
[null,null,null,"Achiziţie"]
[null,null,null,"Arendă / Concesiune/ Comodat / Închiriere/ Dare temporă în administrare sau folosinţă"]
[null,"Persoana care a dat moştenirea/donaţia/vânzător/arendator/concedent/comodant/locator / Persoana care a dat temporar în administrare sau folosință"]
[null,"Nume si prenume / Denumire",null,null,null,null,null,null,null,null,null,null,null,null,null,null,null,null,null,null,null,null,null,null,null,null,"Cod unic înregistrare/Cod numeric personal",null,null,null,null,null,null,null,null,null,null,null,null,null,null,null,null,"Act identitate (serie/număr) cetăţeni străini"]

{"sheet":"Asociati","index":2,"n_rows":24,"n_cols":52,"rows_kept":24,"cut":false,"hidden":false,"merged":[[6,3,6,16],[6,24,6,49],[5,3,5,10],[5,24,5,49],[1,2,1,14],[3,3,3,16],[3,17,3,49],[9,28,9,35],[9,37,9,48],[9,51,9,58],[10,4,10,6],[10,7,10,9],[10,10,10,15],[10,18,11,20],[10,21,11,26],[10,28,11,35],[10,37,11,48],[9,4,9,15],[9,18,9,20],[9,21,9,26],[10,51,11,58],[11,4,11,6],[11,7,11,9],[23,51,24,58],[24,4,24,6],[24,7,24,9],[24,10,24,15],[22,28,22,35],[22,37,22,48],[22,51,22,58],[23,4,23,6],[23,7,23,9],[23,10,23,15],[23,18,24,20],[23,21,24,26],[23,28,24,35],[22,21,22,26],[23,37,24,48],[22,4,22,15],[22,18,22,20],[11,10,11,15],[16,3,16,16],[16,17,16,49],[18,3,18,10],[18,24,18,49],[19,3,19,16],[19,24,19,49]]}
[]
[null,null,"Asociaţi"]
[]
[null,null,null,"Nume si prenume asociat"]
[]
[null,null,null,"Data naşterii",null,null,null,null,null,null,null,null,null,null,null,null,null,null,null,null,null,null,null,null,"Cod numeric personal"]
[]
[]
[]
[null,null,null,null,"Act de identitate",null,null,null,null,null,null,null,null,null,null,null,null,null,"Seria",null,null,"Nr.",null,null,null,null,null,null,"Eliberat la data de",null,null,null,null,null,null,null,null,"de:",null,null,null,null,null,null,null,null,null,null,null,null,null,"Valabil până la:"]
[null,null,null,null,"B.I.",null,null,"C.I.",null,null,"Paşaport"]
[]
[]
[]
[]
[]
[null,null,null,"Nume si prenume asociat"]
[]
[null,null,null,"Data naşterii",null,null,null,null,null,null,null,null,null,null,null,null,null,null,null,null,null,null,null,null,"Cod numeric personal"]
[]
[]
[]
[null,null,null,null,"Act de identitate",null,null,null,null,null,null,null,null,null,null,null,null,null,"Seria",null,null,"Nr.",null,null,null,null,null,null,"Eliberat la data de",null,null,null,null,null,null,null,null,"de:",null,null,null,null,null,null,null,null,null,null,null,null,null,"Valabil până la:"]
[null,null,null,null,"B.I.",null,null,"C.I.",null,null,"Paşaport"]